{"text_format":"1","workbook":"xlsx","n_sheets":8,"sheets":["User Guide","Project_info","Checklist","list","sector_list","sector_questions","sector_weight","ProjectDetails"],"not_rendered":{"charts":0,"images":0,"macros":1,"external_links":0,"defined_names":116,"comments":0,"pivot_tables":0},"unopened":[],"bounds":{"document_bytes":16777216,"sheet_cells":100000,"rows_first":2000,"rows_last":500,"rows_between":2000,"halvings":0,"cell_chars":16384,"cell_head_chars":4096},"cells_cut":0,"cells_raw":0,"read":"whole","date_system":"1900"}

{"sheet":"User Guide","index":0,"n_rows":21,"n_cols":2,"rows_kept":21,"cut":false,"hidden":false,"merged":[[0,0,0,1],[7,0,7,1],[1,0,1,1],[2,0,2,1],[3,0,6,1]]}
["                                                                                                                         (Annexure-A)"]
["Environmental and Social Due Diligence (ESDD) Risk Assessment Tool "]
["Userguide for Environmental and Social Due Diligence (ESDD)"]
["\nThe user guide provides guidance to Risk Officers/Managers (ROs/RMs) on how to use this auto generating risk assessment tool. The generic and sector specific checklists contain questions under three categories - General; Environment; and Social. Based on the responses provided to these questions, the tool will generate a quantitative risk rating. For further detailed explanation on all types of E&S risks please refer to the Environmental and Social Risk Management (ESRM) Guidelines. The ROs/RMs are also advised to use the comments section in the checklist to provide their comments in accordance to the instructions and wherever necessary.        \n\nStep 1 Exclusion List: Please consult the Exclusion list provided below for activities and services that the Bank/FC will not finance. If your client's business is not in the Exclusion list please proceed to fill in the generic ESDD checklist OR wherever applicable sector specific ESDD checklist.\n\nStep 2 ESDD: Please note that the Relationship Official needs to fill in ESDD for transactions defined under \"Applicability of the guideline\" in the ESRM guideline. Choose responses from the drop down list. Based on the responses provided, the tool will generate a risk rating (High, Medium & Low Risk) to determine the overall escalation category. Please refer to the guidelines for the escalation matrix. Please use the correct ESDD in accordance with the industry your client is in. Please use an Industry-specific ESDD if your client is related to the following industries: \n\n1) Cement; \n2) Ceramic; \n3) Fertilizer; \n4) Leather & Tanning; \n5) Pharmaceutical; \n6) Power; \n7) Pulp & Paper; \n8) Ship breaking; \n9) Steel re-rolling; \n10) Textile  \n\nStep 3 ESDD: Please choose an answer for each question from the options. The ESDD checklist will then automatically generate the transaction's overall risk rating.\n"]
[]
[]
[]
["Transaction Type Details"]
["Transaction Type-1","Financing in all agriculture activities related to farming with full organic and environment friendly practices."]
["Transaction Type-2","Financing in all agriculture activities related to farming if there is any environmentally or socially adverse agricultural practices involved such as use of pesticides, agro-chemicals leading to top soil depletion, ground water contamination; use of nitrogenous fertilizers instead of organic fertilizers leading to nitrous oxide emissions and the loan/investment proposal amounting to not more than BDT 2.5 million (25.00 Lakh)"]
["Transaction Type-3","Financing in All agriculture activities related to farming if there is any environmentally or socially adverse agricultural practices involved such as use of pesticides, agro-chemicals leading to top soil depletion, ground water contamination; use of nitrogenous fertilizers instead of organic fertilizers leading to nitrous oxide emissions and the loan/investment proposal amounting to more than BDT 2.5 million (25.00 Lakh)"]
["Transaction Type-4","Financing in all types of Cottage Enterprises, all types of Micro, Retail & Trading Enterprises and Consumer Financing"]
["Transaction Type-5","Financing in E&S sensitive retail & trading enterprises of any amount which include chemical or chemical ingredients, highly fire absorbent products, electronic appliances, combustible oil, paper and dry materials, plastic items"]
["Transaction Type-6","Financing in Small Enterprises (manufacturing and services) and the loan/investment proposal amounting to not more than BDT 3.00 million (30.00 Lakh)"]
["Transaction Type-7","Financing in Small Enterprises (manufacturing and services) and the loan/investment proposal amounting to more than BDT 3.00 million (30.00 Lakh)"]
["Transaction Type-8","Financing in all Medium Enterprises (manufacturing and services) amounting to not more than BDT 5.00 million (50.00 Lakh)"]
["Transaction Type-9","Financing in all Medium Enterprises (manufacturing and services) amounting to more than BDT 5.00 million (50.00 Lakh)"]
["Transaction Type-10","Financing in Small/Medium Enterprises (manufacturing and services) and the loan/investment proposal of any amount of following categories: a) Washing, dyeing and finishing units of RMG sector (water, chemical pollution) b) Small steel re-rolling mills (operational health and safety, thermal, air pollution) c) Brick kilns (air pollution, child labour, burning of fossil fuel) d) Units for tanning, dressing and dyeing of leather and fur (water, chemical, air pollution) e) Pesticides, agrochemical and nitrogen manufacturing units (land contamination, water, air pollution) f) Chemicals and chemical products manufacturing units (safety, pollution) g) Rubber and plastic products manufacturing units (pollution) h) Batteries and accumulators manufacturing units (chemical pollution)"]
[null,"I) Any other industry or business segment falls under the red category of ECR 1997 (Environmental Conservation Rule, 2023)"]
["Transaction Type-11","Financing in all large manufacturing and service enterprises (other than CMSME, retail and trading enterprises)"]
["Transaction Type-12","Financing in Infrastructure Projects"]

{"sheet":"Project_info","index":1,"n_rows":24,"n_cols":5,"rows_kept":24,"cut":false,"hidden":false,"merged":[[0,0,0,1]]}
["Basic Information"]
["Bank/FI Name"]
["Branch Name"]
["Date"]
["Name of Client/Account"]
["Transaction ID"]
["Location"]
["   Division"]
["   District"]
["   Upazilla/Thana"]
["Sector","Textile and Apparel"]
[{"$f":"IF(B11=\"Generic ESDD\",\"Insert Sector Name for Generic ESDD\",\"\")","v":""}]
["CIB Sector code"]
["Product Manufactured/Traded "]
["Core Market","International"]
["Name of Relationship Official"]
["DOE Categorisation","Orange"]
["Transaction Type as Table 1 of Guidelines","Transc. Type-11",null,null," "]
[]
["Risk Rating of the Project",{"$f":"IF(B24<40,\"High Risk\",IF(B24<90,\"Medium Risk\",\"Low Risk\"))","v":"Medium Risk"}]
["General Risks",{"$f":"Checklist!E6","v":100}]
["Environmental health and safety risks",{"$f":"Checklist!E23","v":-76}]
["Social risks",{"$f":"Checklist!E40","v":100}]
["Final Score",{"$f":"AVERAGE(B21:B23)","v":41.333333333333336}]

{"sheet":"Checklist","index":2,"n_rows":70,"n_cols":7,"rows_kept":70,"cut":false,"hidden":false,"merged":[[0,0,0,5],[3,0,3,3],[1,0,1,1],[2,0,2,1],[2,2,2,3]]}
["Environmental and Social Due Diligence (ESDD) Risk Assessment "]
[{"$f":"CONCATENATE(\"Project: \"&Project_info!B5)","v":"Project: "},null,{"$f":"CONCATENATE(\"Transaction ID: \"&Project_info!B6)","v":"Transaction ID: "},{"$f":"CONCATENATE(\"Sector: \"&Project_info!B11)","v":"Sector: Textile and Apparel"}]
[{"$f":"CONCATENATE(\"Date: \"&TEXT(Project_info!B4,\"dd-mm-yyyy\"))","v":"Date: 00-01-1900"},null,{"$f":"CONCATENATE(\"Risk rating of the project: \"&Project_info!B20)","v":"Risk rating of the project: Medium Risk"}]
["Instructions:\nA) Must confirm and keep the records of evidences, certificates, and permits before answering the General Risk, Environmental Risk and Social Risks related questions. \nB) Must explain the reason of answering “Not Applicable” in the “Comments” Section for the above mentioned risks. \nC) Must comply (and align with ESDD) the conditions described in “Sanction Letter” of the borrower; Government Regulations, International Regulation (if applicable), Bangladesh Bank’s Guidelines and Policies, and other relevant Government Instructions and Policies. "]
[null,"Questions","Answer","Comments","Score","Value","Weight"]
["1.0 General Risks",null,null,null,{"$f":"ROUND(SUM(E7:E21)*100/G6,0)","v":100},null,{"$f":"SUM(G7:G21)-IF(F7=4,G7,0)-IF(F8=4,G8,0)-IF(F9=4,G9,0)-IF(F10=4,G10,0)-IF(F11=4,G11,0)-IF(F12=4,G12,0)-IF(F13=4,G13,0)-IF(F14=3,G14,0)-IF(F15=3,G15,0)-IF(F16=3,G16,0)-IF(F17=3,G17,0)-IF(F18=3,G18,0)-IF(F19=3,G19,0)-IF(F20=3,G20,0)-IF(F21=3,G21,0)","v":100}]
[1.01,"Land clearance permit/Site Clearance Certificate",null,null,{"$f":"IF(F7=1,G7,IF(F7=2,G7/2,IF(F7=3,-G7,0)))","v":10},1,10]
[1.02,"Water discharge permit",null,null,{"$f":"IF(F8=1,G8,IF(F8=2,G8/2,IF(F8=3,-G8,0)))","v":10},1,10]
[1.03,"Clearance from DOE",null,null,10,1,10]
[1.04,"Fire license",null,null,10,1,10]
[1.05,"Boiler license ",null,null,10,1,10]
[1.06,"Factory inspection certificate",null,null,8,1,8]
[1.07,"Permission from Department of Explosives",null,null,8,1,8]
[1.08,"Notices were received or fines/penalties were charged for exceeding the limits of air, water, noise and waste levels in past three years.",null,null,{"$f":"IF(F14=2,G14,IF(F14=1,-G14,0))","v":5},2,5]
[1.0900000000000001,"The local community is adversely affected by pollution or there was loss of livelihood because of the project.",null,null,{"$f":"IF(F15=2,G15,IF(F15=1,-G15,0))","v":5},2,5]
[1.1000000000000001,"Worker unrest in the project caused riots/road blocks within the last three years. ",null,null,5,2,5]
[1.1100000000000001,"The project involves activities like converting rice fields into industrial land, filling out water bodies (river, ponds) for business purpose.",null,null,5,2,5]
[1.1200000000000001,"The client has taken adequate measures to mitigate the impact of the operation on the eco-sensitive areas as per regulations.",null,null,{"$f":"IF(F18=1,G18,IF(F18=2,-G18,0))","v":3},1,3]
[1.1299999999999999,"The client has a defined policy on environmental health and safety.",null,null,{"$f":"IF(F19=1,G19,IF(F19=2,-G19,0))","v":4},1,4]
[1.1399999999999999,"The client has a defined policy on social issues management.",null,null,4,1,4]
[1.1499999999999999,"The client has a defined policy on grievance mechanism.",null,null,3,1,3]
[]
["2.0 Environmental risks",null,null,null,{"$f":"ROUND(SUM(E24:E38)*100/G23,0)","v":-76},null,{"$f":"SUM(G24:G38)-IF(F24=3,G24,0)-IF(F25=3,G25,0)-IF(F26=3,G26,0)-IF(F27=3,G27,0)-IF(F28=3,G28,0)-IF(F29=3,G29,0)-IF(F30=3,G30,0)-IF(F31=3,G31,0)-IF(F32=3,G32,0)-IF(F33=3,G33,0)-IF(F34=3,G34,0)-IF(F35=3,G35,0)-IF(F36=3,G36,0)-IF(F37=3,G37,0)-IF(F38=3,G38,0)","v":100}]
[2.0099999999999998,{"$f":"VLOOKUP(RIGHT(A24*100,2)*1,sector_questions,IFERROR(VLOOKUP(Project_info!$B$11,sector_10_codes,2,FALSE),0)+2,FALSE)","v":"There are mchanisms to control volatile organic compounds."},null,null,{"$f":"IF(F24=1,G24,IF(F24=2,-G24,0))","v":-6},2,{"$f":"VLOOKUP(RIGHT(A24*100,2)*1,sector_weight,IFERROR(VLOOKUP(Project_info!$B$11,sector_10_codes,2,FALSE),0)+2,FALSE)","v":6}]
[2.02,{"$f":"VLOOKUP(RIGHT(A25*100,2)*1,sector_questions,IFERROR(VLOOKUP(Project_info!$B$11,sector_10_codes,2,FALSE),0)+2,FALSE)","v":"There is sufficient ventilation i.e. provisions for cross ventilation (e.g., windows at regular intervals, exhaust fans, dust controller etc.)"},null,null,{"$f":"IF(F25=1,G25,IF(F25=2,-G25,0))","v":-8},2,{"$f":"VLOOKUP(RIGHT(A25*100,2)*1,sector_weight,IFERROR(VLOOKUP(Project_info!$B$11,sector_10_codes,2,FALSE),0)+2,FALSE)","v":8}]
[2.0299999999999998,{"$f":"VLOOKUP(RIGHT(A26*100,2)*1,sector_questions,IFERROR(VLOOKUP(Project_info!$B$11,sector_10_codes,2,FALSE),0)+2,FALSE)","v":"There are proper measures to manage heavy metal and liquid wastage."},null,null,-7,2,{"$f":"VLOOKUP(RIGHT(A26*100,2)*1,sector_weight,IFERROR(VLOOKUP(Project_info!$B$11,sector_10_codes,2,FALSE),0)+2,FALSE)","v":7}]
[2.04,{"$f":"VLOOKUP(RIGHT(A27*100,2)*1,sector_questions,IFERROR(VLOOKUP(Project_info!$B$11,sector_10_codes,2,FALSE),0)+2,FALSE)","v":"There are mitigating measures to control radiation."},null,null,-7,2,{"$f":"VLOOKUP(RIGHT(A27*100,2)*1,sector_weight,IFERROR(VLOOKUP(Project_info!$B$11,sector_10_codes,2,FALSE),0)+2,FALSE)","v":7}]
[2.0499999999999998,{"$f":"VLOOKUP(RIGHT(A28*100,2)*1,sector_questions,IFERROR(VLOOKUP(Project_info!$B$11,sector_10_codes,2,FALSE),0)+2,FALSE)","v":"There are mitigation measures to minimize high noise level."},null,null,-8,2,{"$f":"VLOOKUP(RIGHT(A28*100,2)*1,sector_weight,IFERROR(VLOOKUP(Project_info!$B$11,sector_10_codes,2,FALSE),0)+2,FALSE)","v":8}]
[2.06,{"$f":"VLOOKUP(RIGHT(A29*100,2)*1,sector_questions,IFERROR(VLOOKUP(Project_info!$B$11,sector_10_codes,2,FALSE),0)+2,FALSE)","v":"There are proper measures to control emission of CO2, SO2, NOX."},null,null,-8,2,{"$f":"VLOOKUP(RIGHT(A29*100,2)*1,sector_weight,IFERROR(VLOOKUP(Project_info!$B$11,sector_10_codes,2,FALSE),0)+2,FALSE)","v":8}]
[2.0699999999999998,{"$f":"VLOOKUP(RIGHT(A30*100,2)*1,sector_questions,IFERROR(VLOOKUP(Project_info!$B$11,sector_10_codes,2,FALSE),0)+2,FALSE)","v":"Wastewater/effluent is discharged to a location which is not according to the license and permits."},null,null,{"$f":"IF(F30=2,G30,IF(F30=1,-G30,0))","v":-8},1,{"$f":"VLOOKUP(RIGHT(A30*100,2)*1,sector_weight,IFERROR(VLOOKUP(Project_info!$B$11,sector_10_codes,2,FALSE),0)+2,FALSE)","v":8}]
[2.08,{"$f":"VLOOKUP(RIGHT(A31*100,2)*1,sector_questions,IFERROR(VLOOKUP(Project_info!$B$11,sector_10_codes,2,FALSE),0)+2,FALSE)","v":"There is an installed Effluent Treatment Plant (ETP) or Sewage Treatment Plant (STP)."},null,null,{"$f":"IF(F31=1,G31,IF(F31=2,-G31,0))","v":-10},2,{"$f":"VLOOKUP(RIGHT(A31*100,2)*1,sector_weight,IFERROR(VLOOKUP(Project_info!$B$11,sector_10_codes,2,FALSE),0)+2,FALSE)","v":10}]
[2.09,{"$f":"VLOOKUP(RIGHT(A32*100,2)*1,sector_questions,IFERROR(VLOOKUP(Project_info!$B$11,sector_10_codes,2,FALSE),0)+2,FALSE)","v":"There are monitoring records of treatment of water (such as quantity of water treated, quality of wastewater before and after treatment, running hours of ETP etc.)"},null,null,{"$f":"IF(F32=1,G32,IF(F32=2,-G32,0))","v":-8},2,{"$f":"VLOOKUP(RIGHT(A32*100,2)*1,sector_weight,IFERROR(VLOOKUP(Project_info!$B$11,sector_10_codes,2,FALSE),0)+2,FALSE)","v":8}]
[2.1,{"$f":"VLOOKUP(RIGHT(A33*100,2)*1,sector_questions,IFERROR(VLOOKUP(Project_info!$B$11,sector_10_codes,2,FALSE),0)+2,FALSE)","v":"There is a strong odor of chemicals, dumped waste, blocked sewerage etc. caused by untreated effluent."},null,null,{"$f":"IF(F33=2,G33,IF(F33=1,-G33,0))","v":-6},1,{"$f":"VLOOKUP(RIGHT(A33*100,2)*1,sector_weight,IFERROR(VLOOKUP(Project_info!$B$11,sector_10_codes,2,FALSE),0)+2,FALSE)","v":6}]
[2.11,{"$f":"VLOOKUP(RIGHT(A34*100,2)*1,sector_questions,IFERROR(VLOOKUP(Project_info!$B$11,sector_10_codes,2,FALSE),0)+2,FALSE)","v":"The project keeps wastewater discharge (quality and quantity) within the prescribed limit."},null,null,{"$f":"IF(F34=1,G34,IF(F34=2,-G34,0))","v":-6},2,{"$f":"VLOOKUP(RIGHT(A34*100,2)*1,sector_weight,IFERROR(VLOOKUP(Project_info!$B$11,sector_10_codes,2,FALSE),0)+2,FALSE)","v":6}]
[2.12,{"$f":"VLOOKUP(RIGHT(A35*100,2)*1,sector_questions,IFERROR(VLOOKUP(Project_info!$B$11,sector_10_codes,2,FALSE),0)+2,FALSE)","v":"There is evidence of land contamination because of activities such as leakages, spills, improper storage of waste, toxic effluent discharge."},null,null,{"$f":"IF(F35=2,G35,IF(F35=1,-G35,0))","v":-6},1,{"$f":"VLOOKUP(RIGHT(A35*100,2)*1,sector_weight,IFERROR(VLOOKUP(Project_info!$B$11,sector_10_codes,2,FALSE),0)+2,FALSE)","v":6}]
[2.13,{"$f":"VLOOKUP(RIGHT(A36*100,2)*1,sector_questions,IFERROR(VLOOKUP(Project_info!$B$11,sector_10_codes,2,FALSE),0)+2,FALSE)","v":"There are well maintained records on quantity and quality of solid waste generated (including when it was generated) and how it is being treated."},null,null,{"$f":"IF(F36=1,G36,IF(F36=2,-G36,0))","v":4},1,{"$f":"VLOOKUP(RIGHT(A36*100,2)*1,sector_weight,IFERROR(VLOOKUP(Project_info!$B$11,sector_10_codes,2,FALSE),0)+2,FALSE)","v":4}]
[2.14,{"$f":"VLOOKUP(RIGHT(A37*100,2)*1,sector_questions,IFERROR(VLOOKUP(Project_info!$B$11,sector_10_codes,2,FALSE),0)+2,FALSE)","v":"There are boxes, cartons, plastic packets, rags, unused or left over raw materials dumped indiscriminately."},null,null,{"$f":"IF(F37=2,G37,IF(F37=1,-G37,0))","v":4},2,{"$f":"VLOOKUP(RIGHT(A37*100,2)*1,sector_weight,IFERROR(VLOOKUP(Project_info!$B$11,sector_10_codes,2,FALSE),0)+2,FALSE)","v":4}]
[2.15,{"$f":"VLOOKUP(RIGHT(A38*100,2)*1,sector_questions,IFERROR(VLOOKUP(Project_info!$B$11,sector_10_codes,2,FALSE),0)+2,FALSE)","v":"Renewable energy is used."},null,null,{"$f":"IF(F38=1,G38,IF(F38=2,-G38,0))","v":4},1,{"$f":"VLOOKUP(RIGHT(A38*100,2)*1,sector_weight,IFERROR(VLOOKUP(Project_info!$B$11,sector_10_codes,2,FALSE),0)+2,FALSE)","v":4}]
[]
["3.0 Social risks",null,null,null,{"$f":"ROUND(SUM(E41:E70)*100/G40,0)","v":100},null,{"$f":"SUM(G41:G70)-IF(F41=3,G41,0)-IF(F42=3,G42,0)-IF(F43=3,G43,0)-IF(F44=3,G44,0)-IF(F45=3,G45,0)-IF(F46=3,G46,0)-IF(F47=3,G47,0)-IF(F48=3,G48,0)-IF(F49=3,G49,0)-IF(F50=3,G50,0)-IF(F51=3,G51,0)-IF(F52=3,G52,0)-IF(F53=3,G53,0)-IF(F54=3,G54,0)-IF(F55=3,G55,0)-IF(F56=3,G56,0)-IF(F57=3,G57,0)-IF(F58=3,G58,0)-IF(F59=3,G59,0)-IF(F60=3,G60,0)-IF(F61=3,G61,0)-IF(F62=3,G62,0)-IF(F63=3,G63,0)-IF(F64=3,G64,0)-IF(F65=3,G65,0)-IF(F66=3,G66,0)-IF(F67=3,G67,0)-IF(F68=3,G68,0)-IF(F69=3,G69,0)-IF(F70=3,G70,0)","v":100}]
[3.01,"There are sufficient notice boards in domestic language with information on Personal Protective Equipment (PPE)s, workplace safety, occupational hazards.",null,null,{"$f":"IF(F41=1,G41,IF(F41=2,-G41,0))","v":3},1,3]
[3.02,"There are regular trainings of employees on occupational health and safety.",null,null,{"$f":"IF(F42=1,G42,IF(F42=2,-G42,0))","v":3},1,3]
[3.03,"There is an onsite occupational health and safety treatment center.",null,null,4,1,4]
[3.04,"Sufficient firefighting equipments are available, accessible, and identifiable from a distance.",null,null,5,1,5]
[3.05,"Firefighting equipments are properly maintained and kept unlocked",null,null,3,1,3]
[3.06,"Appropriate numbers of independent emergency exits are available per working area. ",null,null,3,1,3]
[3.07,"All emergency exits and access routes are free from obstruction.",null,null,3,1,3]
[3.08,"There are regular health & safety audits. [Check if there are audits carried out by Accord, Alliance, buyers (for RMG sector only) any other third party]",null,null,3,1,3]
[3.09,"Non Compliances identified in the audit report are addressed ",null,null,3,1,3]
[3.1,"There is an independent and functioning evacuation alarm present with continuous sound to notify all workers about an emergency situation and to ensure a fast and safe evacuation.",null,null,{"$f":"IF(F50=1,G50,IF(F50=2,-G50,0))","v":3},1,3]
[3.11,"A fire safety plan or onsite emergency plan or disaster management plan is in place.",null,null,5,1,5]
[3.12,"There is a daycare center for the children of the employees. ",null,null,2,1,2]
[3.13,"Facilities such as washroom and drinking water are sufficient for the employees. ",null,null,3,1,3]
[3.14,"Employees have a separate place for eating. ",null,null,2,1,2]
[3.15,"The project ensures payment of minimum wage.",null,null,5,1,5]
[3.16,"There is evidence of employees working more than 60 hours in a week. ",null,null,{"$f":"IF(F56=2,G56,IF(F56=1,-G56,0))","v":4},2,4]
[3.17,"Verbal, physical abuse or fines are used as disciplinary actions.",null,null,{"$f":"IF(F57=2,G57,IF(F57=1,-G57,0))","v":4},2,4]
[3.18,"There is evidence of discrimination based on gender or religion.",null,null,3,2,3]
[3.19,"There are adequate safeguards in place to avoid child labour and forced labour.",null,null,{"$f":"IF(F59=1,G59,IF(F59=2,-G59,0))","v":3},1,3]
[3.2," The project maintains records for age of workforce, wages, payment and attendance.",null,null,{"$f":"IF(F60=1,G60,IF(F60=2,-G60,0))","v":2},1,2]
[3.21,"There are provision for labor unions, representation, collective bargaining and grievance mechanism.",null,null,3,1,3]
[3.22,"There is presence of a plan for community health and safety.",null,null,3,1,3]
[3.23,"There is evidence of issues that may create nuisance/accidents/injuries to local community in future.",null,null,{"$f":"IF(F63=2,G63,IF(F63=1,-G63,0))","v":3},2,3]
[3.24,"There is physical evidence of foul smell, noise, air pollution etc. due to project operations that may impact the local community.",null,null,{"$f":"IF(F64=2,G64,IF(F64=1,-G64,0))","v":2},2,2]
[3.2500000000000102,"There are measures to mitigate adverse impacts of the hazardous waste on the local community.",null,null,{"$f":"IF(F65=1,G65,IF(F65=2,-G65,0))","v":3},1,3]
[3.26000000000001,"There are safeguards in place to minimize or avoid community exposure to potential harmful impacts from hazardous material.",null,null,{"$f":"IF(F66=1,G66,IF(F66=2,-G66,0))","v":3},1,3]
[3.2700000000000098,"The client has taken mitigation measures to stop spreading waterborne diseases or improper disposal of solid waste on land.",null,null,2,1,2]
[3.28000000000001,"The project caused displacement of local community.",null,null,{"$f":"IF(F68=2,G68,IF(F68=1,-G68,0))","v":6},2,6]
[3.2900000000000098,"The displaced community were resettled and properly compensated.",null,null,{"$f":"IF(F69=1,G69,IF(F69=2,-G69,0))","v":6},1,6]
[3.30000000000001,"The project has a grievance redressal system (such as regular meeting) which gives the affected community and other stakeholders a platform to express their concerns.",null,null,{"$f":"IF(F70=1,G70,IF(F70=2,-G70,0))","v":3},1,3]

{"sheet":"list","index":3,"n_rows":620,"n_cols":7,"rows_kept":620,"cut":false,"hidden":true,"merged":[]}
["­Division­","­District­","Zila","­Upazila/Thana­","­Core Market­","­DOE Categorisation­","­Transaction Type as Table 1 of Guidelines­"]
["BARISAL","BARGUNA","BARGUNA",null,"LOCAL","RED","Transaction Type-3 of ESRM Guideline "]
["CHATTOGRAM","BARISAL",null,"AMTALI","INTERNATIONAL","ORANGE A","Transaction Type-5 of ESRM Guideline "]
["DHAKA","BHOLA",null,"BAMNA",null,"ORANGE B","Transaction Type-7 of ESRM Guideline "]
["KHULNA","JHALOKATI",null,"BARGUNA SADAR",null,"GREEN","Transaction Type-9 of ESRM Guideline "]
["RAJSHAHI","PATUAKHALI",null,"BETAGI",null,null,"Transaction Type-10 of ESRM Guideline "]
["RANGPUR","PIROJPUR",null,"PATHARGHATA",null,null,"Transaction Type-11 of ESRM Guideline "]
["SYLHET","BANDARBAN",null,"TALTALI",null,null,"Transaction Type-12 of ESRM Guideline "]
["MYMENSINGH","BRAHMANBARIA","BARISAL"]
[null,"CHANDPUR",null,"AGAILJHARA"]
[null,"CHATTOGRAM",null,"BABUGANJ"]
[null,"COMILLA",null,"BAKERGANJ"]
[null,"COX'S BAZAR",null,"BANARI PARA"]
[null,"FENI",null,"GAURNADI"]
[null,"KHAGRACHHARI",null,"HIZLA"]
[null,"LAKSHMIPUR",null,"BARISAL SADAR (KOTWALI)"]
[null,"NOAKHALI",null,"MHENDIGANJ"]
[null,"RANGAMATI",null,"MULADI"]
[null,"DHAKA",null,"WAZIRPUR"]
[null,"FARIDPUR","BHOLA"]
[null,"GAZIPUR",null,"BHOLA SADAR"]
[null,"GOPALGANJ","","BURHANUDDIN"]
[null,"KISHOREGONJ","","CHAR FASSON"]
[null,"MADARIPUR","","DAULAT KHAN"]
[null,"MANIKGANJ","","LALMOHAN"]
[null,"MUNSHIGANJ","","MANPURA"]
[null,"NARAYANGANJ","","TAZUMUDDIN"]
[null,"NARSINGDI","JHALOKATI"]
[null,"RAJBARI",null,"JHALOKATI SADAR"]
[null,"SHARIATPUR","","KANTHALIA"]
[null,"TANGAIL","","NALCHITY"]
[null,"BAGERHAT","","RAJAPUR"]
[null,"CHUADANGA","PATUAKHALI"]
[null,"JESSORE",null,"BAUPHAL"]
[null,"JHENAIDAH","","DASHMINA"]
[null,"KHULNA","","DUMKI"]
[null,"KUSHTIA","","GALACHIPA"]
[null,"MAGURA","","KALAPARA"]
[null,"MEHERPUR","","MIRZAGANJ"]
[null,"NARAIL","","PATUAKHALI SADAR"]
[null,"SATKHIRA","","RANGABALI"]
[null,"BOGRA","PIROJPUR"]
[null,"JOYPURHAT",null,"BHANDARIA"]
[null,"NAOGAON","","KAWKHALI"]
[null,"NATORE","","MATHBARIA"]
[null,"CHAPAI","","NAZIRPUR"]
[null,"PABNA","","PIROJPUR SADAR"]
[null,"RAJSHAHI","","NESARABAD (SWARUPKATI)"]
[null,"SIRAJGANJ","","ZIANAGAR"]
[null,"DINAJPUR","BANDARBAN"]
[null,"GAIBANDHA",null,"ALIKADAM"]
[null,"KURIGRAM","","BANDARBAN SADAR"]
[null,"LALMONIRHAT","","LAMA"]
[null,"NILPHAMARI","","NAIKHONGCHHARI"]
[null,"PANCHAGARH","","ROWANGCHHARI"]
[null,"RANGPUR","","RUMA"]
[null,"THAKURGAON","","THANCHI"]
[null,"HABIGANJ","BRAHMANBARIA"]
[null,"MAULVIBAZAR",null,"AKHAURA"]
[null,"SUNAMGANJ","","BANCHHARAMPUR"]
[null,"SYLHET","","BIJOYNAGAR"]
[null,"MYMENSINGH","","BRAHMANBARIA SADAR"]
[null,"SHERPUR","","ASHUGANJ"]
[null,"NETRAKONA","","KASBA"]
[null,"JAMALPUR","","NABINAGAR"]
[null,null,"","NASIRNAGAR"]
[null,null,"","SARAIL"]
[null,null,"CHANDPUR"]
[null,null,null,"CHANDPUR SADAR"]
[null,null,"","FARIDGANJ"]
[null,null,"","HAIM CHAR"]
[null,null,"","HAJIGANJ"]
[null,null,"","KACHUA"]
[null,null,"","MATLAB DAKSHIN"]
[null,null,"","MATLAB UTTAR"]
[null,null,"","SHAHRASTI"]
[null,null,"CHITTAGONG"]
[null,null,null,"ANOWARA"]
[null,null,"","BAYEJID BOSTAMI"]
[null,null,"","BANSHKHALI"]
[null,null,"","BAKALIA"]
[null,null,"","BOALKHALI"]
[null,null,"","CHANDANAISH"]
[null,null,"","CHANDGAON"]
[null,null,"","CHATTOGRAM PORT"]
[null,null,"","DOUBLE MOORING"]
[null,null,"","FATIKCHHARI"]
[null,null,"","HALISHAHAR"]
[null,null,"","HATHAZARI"]
[null,null,"","KOTWALI"]
[null,null,"","KHULSHI"]
[null,null,"","LOHAGARA"]
[null,null,"","MIRSHARAI"]
[null,null,"","PAHARTALI"]
[null,null,"","PANCHLAISH"]
[null,null,"","PATIYA"]
[null,null,"","PATENGA"]
[null,null,"","RANGUNIA"]
[null,null,"","RAOZAN"]
[null,null,"","SANDWIP"]
[null,null,"","SATKANIA"]
[null,null,"","SITAKUNDA"]
[null,null,"COMILLA"]
[null,null,null,"BARURA"]
[null,null,"","BRAHMAN PARA"]
[null,null,"","BURICHANG"]
[null,null,"","CHANDINA"]
[null,null,"","CHAUDDAGRAM"]
[null,null,"","COMILLA SADAR DAKSHIN"]
[null,null,"","DAUDKANDI"]
[null,null,"","DEBIDWAR"]
[null,null,"","HOMNA"]
[null,null,"","COMILLA ADARSHA SADAR"]
[null,null,"","LAKSAM"]
[null,null,"","MANOHARGANJ"]
[null,null,"","MEGHNA"]
[null,null,"","MURADNAGAR"]
[null,null,"","NANGALKOT"]
[null,null,"","TITAS"]
[null,null,"COX'S BAZAR"]
[null,null,null,"CHAKARIA"]
[null,null,"","COX'S BAZAR SADAR"]
[null,null,"","KUTUBDIA"]
[null,null,"","MAHESHKHALI"]
[null,null,"","PEKUA"]
[null,null,"","RAMU"]
[null,null,"","TEKNAF"]
[null,null,"","UKHIA"]
[null,null,"FENI"]
[null,null,null,"CHHAGALNAIYA"]
[null,null,"","DAGANBHUIYAN"]
[null,null,"","FENI SADAR"]
[null,null,"","FULGAZI"]
[null,null,"","PARSHURAM"]
[null,null,"","SONAGAZI"]
[null,null,"KHAGRACHHARI"]
[null,null,null,"DIGHINALA"]
[null,null,"","KHAGRACHHARI SADAR"]
[null,null,"","LAKSHMICHHARI"]
[null,null,"","MAHALCHHARI"]
[null,null,"","MANIKCHHARI"]
[null,null,"","MATIRANGA"]
[null,null,"","PANCHHARI"]
[null,null,"","RAMGARH"]
[null,null,"LAKSHMIPUR"]
[null,null,null,"KAMALNAGAR"]
[null,null,"","LAKSHMIPUR SADAR"]
[null,null,"","ROYPUR"]
[null,null,"","RAMGANJ"]
[null,null,"","RAMGATI"]
[null,null,"NOAKHALI"]
[null,null,null,"BEGUMGANJ"]
[null,null,"","CHATKHIL"]
[null,null,"","COMPANIGANJ"]
[null,null,"","HATIYA"]
[null,null,"","KABIRHAT"]
[null,null,"","SENBAGH"]
[null,null,"","SONAIMURI"]
[null,null,"","SUBARNACHAR"]
[null,null,"","NOAKHALI SADAR"]
[null,null,"RANGAMATI"]
[null,null,null,"BAGHAICHHARI"]
[null,null,"","BARKAL UPAZILA"]
[null,null,"","KAWKHALI (BETBUNIA)"]
[null,null,"","BELAI CHHARI UPAZI"]
[null,null,"","KAPTAI UPAZILA"]
[null,null,"","JURAI CHHARI UPAZIL"]
[null,null,"","LANGADU UPAZILA"]
[null,null,"","NANIARCHAR UPAZILA"]
[null,null,"","RAJASTHALI UPAZILA"]
[null,null,"","RANGAMATI SADAR UP"]
[null,null,"DHAKA"]
[null,null,null,"ADABOR"]
[null,null,"","BADDA"]
[null,null,"","BANGSHAL"]
[null,null,"","BIMAN BANDAR"]
[null,null,"","BANANI"]
[null,null,"","CANTONMENT"]
[null,null,"","CHAK BAZAR"]
[null,null,"","DAKSHINKHAN"]
[null,null,"","DARUS SALAM"]
[null,null,"","DEMRA"]
[null,null,"","DHAMRAI"]
[null,null,"","DHANMONDI"]
[null,null,"","DOHAR"]
[null,null,"","BHASAN TEK"]
[null,null,"","BHATARA"]
[null,null,"","GENDARIA"]
[null,null,"","GULSHAN"]
[null,null,"","HAZARIBAGH"]
[null,null,"","JATRABARI"]
[null,null,"","KAFRUL"]
[null,null,"","KADAMTALI"]
[null,null,"","KALABAGAN"]
[null,null,"","KAMRANGIR CHAR"]
[null,null,"","KHILGAON"]
[null,null,"","KHILKHET"]
[null,null,"","KERANIGANJ"]
[null,null,"","KOTWALI"]
[null,null,"","LALBAGH"]
[null,null,"","MIRPUR"]
[null,null,"","MOHAMMADPUR"]
[null,null,"","MOTIJHEEL"]
[null,null,"","MUGDA PARA"]
[null,null,"","NAWABGANJ"]
[null,null,"","NEW MARKET"]
[null,null,"","PALLABI"]
[null,null,"","PALTAN"]
[null,null,"","RAMNA"]
[null,null,"","RAMPURA"]
[null,null,"","SABUJBAGH"]
[null,null,"","RUPNAGAR"]
[null,null,"","SAVAR"]
[null,null,"","SHAHJAHANPUR"]
[null,null,"","SHAH ALI"]
[null,null,"","SHAHBAGH"]
[null,null,"","SHYAMPUR"]
[null,null,"","SHER-E-BANGLA NAGAR"]
[null,null,"","SUTRAPUR"]
[null,null,"","TEJGAON"]
[null,null,"","TEJGAON IND. AREA"]
[null,null,"","TURAG"]
[null,null,"","UTTARA PASCHIM"]
[null,null,"","UTTARA PURBA"]
[null,null,"","UTTAR KHAN"]
[null,null,"","WARI"]
[null,null,"FARIDPUR"]
[null,null,null,"ALFADANGA"]
[null,null,"","BHANGA"]
[null,null,"","BOALMARI"]
[null,null,"","CHAR BHADRASAN"]
[null,null,"","FARIDPUR SADAR"]
[null,null,"","MADHUKHALI"]
[null,null,"","NAGARKANDA"]
[null,null,"","SADARPUR"]
[null,null,"","SALTHA"]
[null,null,"GAZIPUR"]
[null,null,null,"GAZIPUR SADAR"]
[null,null,"","KALIAKAIR"]
[null,null,"","KALIGANJ"]
[null,null,"","KAPASIA"]
[null,null,"","SREEPUR"]
[null,null,"GOPALGANJ"]
[null,null,null,"GOPALGANJ SADAR"]
[null,null,"","KASHIANI"]
[null,null,"","KOTALIPARA"]
[null,null,"","MUKSUDPUR"]
[null,null,"","TUNGIPARA"]
[null,null,"JAMALPUR"]
[null,null,null,"BAKSHIGANJ"]
[null,null,"","DEWANGANJ"]
[null,null,"","ISLAMPUR"]
[null,null,"","JAMALPUR SADAR"]
[null,null,"","MADARGANJ"]
[null,null,"","MELANDAHA"]
[null,null,"","SARISHABARI UPAZILA"]
[null,null,"KISHOREGONJ"]
[null,null,null,"AUSTAGRAM"]
[null,null,"","BAJITPUR"]
[null,null,"","BHAIRAB"]
[null,null,"","HOSSAINPUR"]
[null,null,"","ITNA"]
[null,null,"","KARIMGANJ"]
[null,null,"","KATIADI"]
[null,null,"","KISHOREGANJ SADAR"]
[null,null,"","KULIAR CHAR"]
[null,null,"","MITHAMAIN"]
[null,null,"","NIKLI"]
[null,null,"","PAKUNDIA"]
[null,null,"","TARAIL"]
[null,null,"MADARIPUR"]
[null,null,null,"KALKINI"]
[null,null,"","MADARIPUR SADAR"]
[null,null,"","RAJOIR"]
[null,null,"","SHIBCHAR"]
[null,null,"MANIKGANJ"]
[null,null,null,"DAULATPUR"]
[null,null,null,"GHIOR"]
[null,null,"","HARIRAMPUR"]
[null,null,"","MANIKGANJ SADAR"]
[null,null,"","SATURIA"]
[null,null,"","SHIBALAYA"]
[null,null,"","SINGAIR"]
[null,null,"MUNSHIGANJ"]
[null,null,null,"GAZARIA"]
[null,null,"","LOHAJANG"]
[null,null,"","MUNSHIGANJ SADAR"]
[null,null,"","SERAJDIKHAN"]
[null,null,"","SREENAGAR"]
[null,null,"","TONGIBARI"]
[null,null,"MYMENSINGH"]
[null,null,null,"BHALUKA"]
[null,null,"","DHOBAURA"]
[null,null,"","FULBARIA"]
[null,null,"","GAFFARGAON"]
[null,null,"","GAURIPUR"]
[null,null,"","HALUAGHAT"]
[null,null,"","ISHWARGANJ"]
[null,null,"","MYMENSINGH SADAR"]
[null,null,"","MUKTAGACHHA"]
[null,null,"","NANDAIL"]
[null,null,"","PHULPUR"]
[null,null,"","TRISHAL"]
[null,null,"NARAYANGANJ"]
[null,null,null,"ARAIHAZAR"]
[null,null,"","SONARGAON"]
[null,null,"","BANDAR"]
[null,null,"","NARAYANGANJ SADAR"]
[null,null,"","RUPGANJ"]
[null,null,"NARSINGDI"]
[null,null,null,"BELABO"]
[null,null,"","MANOHARDI"]
[null,null,"","NARSINGDI SADAR"]
[null,null,"","PALASH"]
[null,null,"","ROYPURA"]
[null,null,"","SHIBPUR"]
[null,null,"NETRAKONA"]
[null,null,null,"ATPARA"]
[null,null,"","BARHATTA"]
[null,null,"","DURGAPUR"]
[null,null,"","KHALIAJURI"]
[null,null,"","KALMAKANDA"]
[null,null,"","KENDUA"]
[null,null,"","MADAN"]
[null,null,"","MOHANGANJ"]
[null,null,"","NETROKONA SADAR"]
[null,null,"","PURBADHALA"]
[null,null,"RAJBARI"]
[null,null,null,"BALIAKANDI"]
[null,null,"","GOALANDA"]
[null,null,"","KALUKHALI"]
[null,null,"","PANGSHA"]
[null,null,"","RAJBARI SADAR"]
[null,null,"SHARIATPUR"]
[null,null,null,"BHEDARGANJ"]
[null,null,"","DAMUDYA"]
[null,null,"","GOSAIRHAT"]
[null,null,"","NARIA"]
[null,null,"","SHARIATPUR SADAR"]
[null,null,"","ZANJIRA"]
[null,null,"SHERPUR"]
[null,null,null,"JHENAIGATI"]
[null,null,"","NAKLA"]
[null,null,"","NALITABARI"]
[null,null,"","SHERPUR SADAR"]
[null,null,"","SREEBARDI"]
[null,null,"TANGAIL"]
[null,null,null,"BASAIL"]
[null,null,"","BHUAPUR"]
[null,null,"","DELDUAR"]
[null,null,"","DHANBARI"]
[null,null,"","GHATAIL"]
[null,null,"","GOPALPUR"]
[null,null,"","KALIHATI"]
[null,null,"","MADHUPUR"]
[null,null,"","MIRZAPUR"]
[null,null,"","NAGARPUR"]
[null,null,"","SAKHIPUR"]
[null,null,"","TANGAIL SADAR"]
[null,null,"BAGERHAT"]
[null,null,null,"BAGERHAT SADAR"]
[null,null,"","CHITALMARI"]
[null,null,"","FAKIRHAT"]
[null,null,"","KACHUA"]
[null,null,"","MOLLAHAT"]
[null,null,"","MONGLA"]
[null,null,"","MORRELGANJ"]
[null,null,"","RAMPAL"]
[null,null,"","SARANKHOLA"]
[null,null,"CHUADANGA"]
[null,null,null,"ALAMDANGA"]
[null,null,"","CHUADANGA SADAR"]
[null,null,"","DAMURHUDA"]
[null,null,"","JIBAN NAGAR"]
[null,null,"JESSORE"]
[null,null,null,"ABHAYNAGAR"]
[null,null,"","BAGHER PARA"]
[null,null,"","CHAUGACHHA"]
[null,null,"","JHIKARGACHHA"]
[null,null,"","KESHABPUR"]
[null,null,"","JESSORE SADAR"]
[null,null,"","MANIRAMPUR"]
[null,null,"","SHARSHA"]
[null,null,"JHENAIDAH"]
[null,null,null,"HARINAKUNDA"]
[null,null,"","JHENAIDAH SADAR"]
[null,null,"","KALIGANJ"]
[null,null,"","KOTCHANDPUR"]
[null,null,"","MAHESHPUR"]
[null,null,"","SHAILKUPA"]
[null,null,"KHULNA"]
[null,null,null,"BATIAGHATA"]
[null,null,"","DACOPE"]
[null,null,"","DAULATPUR"]
[null,null,"","DUMURIA"]
[null,null,"","DIGHALIA"]
[null,null,"","KHALISHPUR"]
[null,null,"","KHAN JAHAN ALI"]
[null,null,"","KHULNA SADAR"]
[null,null,"","KOYRA"]
[null,null,"","PAIKGACHHA"]
[null,null,"","PHULTALA"]
[null,null,"","RUPSA"]
[null,null,"","SONADANGA"]
[null,null,"","TEROKHADA"]
[null,null,"KUSHTIA"]
[null,null,null,"BHERAMARA"]
[null,null,"","DAULATPUR"]
[null,null,"","KHOKSA"]
[null,null,"","KUMARKHALI"]
[null,null,"","KUSHTIA SADAR"]
[null,null,"","MIRPUR"]
[null,null,"MAGURA"]
[null,null,null,"MAGURA SADAR"]
[null,null,"","MOHAMMADPUR"]
[null,null,"","SHALIKHA"]
[null,null,"","SREEPUR"]
[null,null,"MEHERPUR"]
[null,null,null,"GANGNI"]
[null,null,"","MUJIB NAGAR"]
[null,null,"","MEHERPUR SADAR"]
[null,null,"NARAIL"]
[null,null,null,"KALIA"]
[null,null,"","LOHAGARA"]
[null,null,"","NARAIL SADAR"]
[null,null,"SATKHIRA"]
[null,null,null,"ASSASUNI"]
[null,null,"","DEBHATA"]
[null,null,"","KALAROA"]
[null,null,"","KALIGANJ"]
[null,null,"","SATKHIRA SADAR"]
[null,null,"","SHYAMNAGAR"]
[null,null,"","TALA"]
[null,null,"BOGRA"]
[null,null,null,"ADAMDIGHI"]
[null,null,"","BOGRA SADAR"]
[null,null,"","DHUNAT"]
[null,null,"","DHUPCHANCHIA"]
[null,null,"","GABTALI"]
[null,null,"","KAHALOO"]
[null,null,"","NANDIGRAM"]
[null,null,"","SARIAKANDI"]
[null,null,"","SHAJAHANPUR"]
[null,null,"","SHERPUR"]
[null,null,"","SHIBGANJ"]
[null,null,"","SONATOLA"]
[null,null,"JOYPURHAT"]
[null,null,null,"AKKELPUR"]
[null,null,"","JOYPURHAT SADAR"]
[null,null,"","KALAI"]
[null,null,"","KHETLAL"]
[null,null,"","PANCHBIBI"]
[null,null,"NAOGAON"]
[null,null,null,"ATRAI"]
[null,null,"","BADALGACHHI"]
[null,null,"","DHAMOIRHAT"]
[null,null,"","MANDA"]
[null,null,"","MAHADEBPUR"]
[null,null,"","NAOGAON SADAR"]
[null,null,"","NIAMATPUR"]
[null,null,"","PATNITALA"]
[null,null,"","PORSHA"]
[null,null,"","RANINAGAR"]
[null,null,"","SAPAHAR"]
[null,null,"NATORE"]
[null,null,null,"BAGATIPARA"]
[null,null,"","BARAIGRAM"]
[null,null,"","GURUDASPUR"]
[null,null,"","LALPUR"]
[null,null,"","NATORE SADAR"]
[null,null,"","SINGRA"]
[null,null,"CHAPAI"]
[null,null,null,"NABABGANJ"]
[null,null,"","BHOLAHAT"]
[null,null,"","GOMASTAPUR"]
[null,null,"","NACHOLE"]
[null,null,"","CHAPAI NABABGANJ SADAR"]
[null,null,"","SHIBGANJ"]
[null,null,"PABNA"]
[null,null,null,"ATGHARIA"]
[null,null,"","BERA"]
[null,null,"","BHANGURA"]
[null,null,"","CHATMOHAR"]
[null,null,"","FARIDPUR"]
[null,null,"","ISHWARDI"]
[null,null,"","PABNA SADAR"]
[null,null,"","SANTHIA"]
[null,null,"","SUJANAGAR"]
[null,null,"RAJSHAHI"]
[null,null,null,"BAGHA"]
[null,null,"","BAGHMARA"]
[null,null,"","BOALIA"]
[null,null,"","CHARGHAT"]
[null,null,"","DURGAPUR"]
[null,null,"","GODAGARI"]
[null,null,"","MATIHAR"]
[null,null,"","MOHANPUR"]
[null,null,"","PABA"]
[null,null,"","PUTHIA"]
[null,null,"","RAJPARA"]
[null,null,"","SHAH MAKHDUM"]
[null,null,"","TANORE"]
[null,null,"SIRAJGANJ"]
[null,null,null,"BELKUCHI"]
[null,null,"","CHAUHALI"]
[null,null,"","KAMARKHANDA"]
[null,null,"","KAZIPUR"]
[null,null,"","ROYGANJ"]
[null,null,"","SHAHJADPUR"]
[null,null,"","SIRAJGANJ SADAR"]
[null,null,"","TARASH"]
[null,null,"","ULLAH PARA"]
[null,null,"DINAJPUR"]
[null,null,null,"BIRAMPUR"]
[null,null,"","BIRGANJ"]
[null,null,"","BIRAL"]
[null,null,"","BOCHAGANJ"]
[null,null,"","CHIRIRBANDAR"]
[null,null,"","FULBARI"]
[null,null,"","GHORAGHAT"]
[null,null,"","HAKIMPUR"]
[null,null,"","KAHAROLE"]
[null,null,"","KHANSAMA"]
[null,null,"","DINAJPUR SADAR"]
[null,null,"","NAWABGANJ"]
[null,null,"","PARBATIPUR"]
[null,null,"GAIBANDHA"]
[null,null,null,"FULCHHARI"]
[null,null,"","GAIBANDHA SADAR"]
[null,null,"","GOBINDAGANJ"]
[null,null,"","PALASHBARI"]
[null,null,"","SADULLAPUR"]
[null,null,"","SAGHATA"]
[null,null,"","SUNDARGANJ"]
[null,null,"KURIGRAM"]
[null,null,null,"BHURUNGAMARI"]
[null,null,"","CHAR RAJIBPUR"]
[null,null,"","CHILMARI"]
[null,null,"","PHULBARI"]
[null,null,"","KURIGRAM SADAR"]
[null,null,"","NAGESHWARI"]
[null,null,"","RAJARHAT"]
[null,null,"","RAUMARI"]
[null,null,"","ULIPUR"]
[null,null,"LALMONIRHAT"]
[null,null,null,"ADITMARI"]
[null,null,"","HATIBANDHA"]
[null,null,"","KALIGANJ"]
[null,null,"","LALMONIRHAT SADAR"]
[null,null,"","PATGRAM"]
[null,null,"NILPHAMARI"]
[null,null,null,"DIMLA UPAZILA"]
[null,null,"","DOMAR UPAZILA"]
[null,null,"","JALDHAKA UPAZILA"]
[null,null,"","KISHOREGANJ UPAZILA"]
[null,null,"","NILPHAMARI SADAR UPAZ"]
[null,null,"","SAIDPUR UPAZILA"]
[null,null,"PANCHAGARH"]
[null,null,null,"ATWARI"]
[null,null,"","BODA"]
[null,null,"","DEBIGANJ"]
[null,null,"","PANCHAGARH SADAR"]
[null,null,"","TENTULIA"]
[null,null,"RANGPUR"]
[null,null,null,"BADARGANJ"]
[null,null,"","GANGACHARA"]
[null,null,"","KAUNIA"]
[null,null,"","RANGPUR SADAR"]
[null,null,"","MITHA PUKUR"]
[null,null,"","PIRGACHHA"]
[null,null,"","PIRGANJ"]
[null,null,"","TARAGANJ"]
[null,null,"THAKURGAON"]
[null,null,null,"BALIADANGI"]
[null,null,"","HARIPUR"]
[null,null,"","PIRGANJ"]
[null,null,"","RANISANKAIL"]
[null,null,"","THAKURGAON SADAR"]
[null,null,"HABIGANJ"]
[null,null,null,"AJMIRIGANJ"]
[null,null,"","BAHUBAL"]
[null,null,"","BANIACHONG"]
[null,null,"","CHUNARUGHAT"]
[null,null,"","HABIGANJ SADAR"]
[null,null,"","LAKHAI"]
[null,null,"","MADHABPUR"]
[null,null,"","NABIGANJ"]
[null,null,"MAULVIBAZAR"]
[null,null,null,"BARLEKHA"]
[null,null,"","JURI"]
[null,null,"","KAMALGANJ"]
[null,null,"","KULAURA"]
[null,null,"","MAULVIBAZAR SADAR"]
[null,null,"","RAJNAGAR"]
[null,null,"","SREEMANGAL"]
[null,null,"SUNAMGANJ"]
[null,null,null,"BISHWAMBARPUR"]
[null,null,"","CHHATAK"]
[null,null,"","DAKSHIN SUNAMGANJ"]
[null,null,"","DERAI"]
[null,null,"","DHARAMPASHA"]
[null,null,"","DOWARABAZAR"]
[null,null,"","JAGANNATHPUR"]
[null,null,"","JAMALGANJ"]
[null,null,"","SULLA"]
[null,null,"","SUNAMGANJ SADAR"]
[null,null,"","TAHIRPUR"]
[null,null,"SYLHET"]
[null,null,null,"BALAGANJ"]
[null,null,null,"BEANI BAZAR"]
[null,null,null,"BISHWANATH"]
[null,null,null,"COMPANIGANJ"]
[null,null,null,"DAKSHIN SURMA"]
[null,null,null,"FENCHUGANJ"]
[null,null,"","GOLAPGANJ"]
[null,null,"","GOWAINGHAT"]
[null,null,"","JAINTIAPUR"]
[null,null,"","KANAIGHAT"]
[null,null,"","SYLHET SADAR"]
[null,null,"","ZAKIGANJ"]

{"sheet":"sector_list","index":4,"n_rows":570,"n_cols":4,"rows_kept":570,"cut":false,"hidden":true,"merged":[]}
["­Sector­","Code","Sub-sector","Code"]
["ACADEMY, RESEARCH INSTITUTE, TRAINING INSTITUTES, COUNCIL & DEVELOPMENT CENTRE","","DIRECTORATE OF HEALTH",112001]
["AGRICULTURAL FARMS (NURSERY, HORTICULTURE, APICULTURE ETC)",901001,"DIRECTORATE OF RELIEF AND REHABILITATION",112002]
["AGRO-BASED AND AGRO-PROCESSING INDUSTRY","","DIRECTORATE OF PRIMARY EDUCATION",112003]
["BANGLADESH CHEMICAL INDUSTRIES CORPORATION AND RELATED ENTERPRISES","","DIRECTORATE OF NATIONAL SAVINGS",112004]
["BANGLADESH JUTE MILLS CORPORATION AND RELATED ENTERPRISES",122510,"DIRECTORATE OF JUTE",112005]
["BANGLADESH PETROLEUM CORPORATION AND BANGLADESH OIL, GAS & MINERAL CORPORATION AND RELATED ENTERPRISES","","DIRECTORATE OF NATIONAL CONSUMER RIGHTS PROTECTION",112006]
["BANGLADESH POST OFFICE (SAVINGS BANK SCHEME)",112200,"DIRECTORATE OF LABOUR",112007]
["BANGLADESH POWER DEVELOPMENT BOARD & RELATED ENTERPRISES","","DIRECTORATE OF LAND RECORD AND SURVEY",112014]
["BANGLADESH STEEL & ENGINEERING CORPORATION AND RELATED ENTERPRISES","","REGISTRATION DIRECTORATE",112009]
["BANGLADESH SUGAR & FOOD INDUSTRIES CORPORATION AND RELATED ENTERPRISES","","DIRECTORATE OF PUBLIC HEALTH AND ENGINEERING",112010]
["BANGLADESH TEXTILE MILLS CORPORATION & RELATED ENTERPRISES",122100,"DIRECTORATE OF SECONDARY AND HIGHER SECONDARY EDUCATION",112011]
["DAIRY FARMS",901003,"DIRECTORATE OF SOCIAL WELFARE",112012]
["DIRECTORATE OF BANGLADESH POST OFFICE ( POSTAL SERVICES )",112100,"DIRECTORATE OF LIVESTOCK",112013]
["DIRECTORATES, DEPARTMENTS AND OTHER GOVT. OFFICES","","DIRECTORATE OF SPORTS",112014]
["EXPORTERS",903020,"DIRECTORATE OF ARCHAEOLOGY",112015]
["FINANCIAL AUXILIARIES","","DIRECTORATE OF BANGLADESH FAMILY PLANNING",112016]
["FISHING FARMS ( HATCHERY, SHRIMP CULTURE ETC)",901002,"DIRECTORATE OF PRINTING, STATIONERY, FORMS AND PUBLICATION",112017]
["FOOD MINISTRY ( INCLUDING FOOD DIVISIONS/DIRECTORATES)",111000,"DIRECTORATE OF NURSING SERVICES",112018]
["FOREIGN OFFICES/ EMBASSIES/ENTERPRISES/COMPANIES/LIAISON OFFICES/ FIRMS/NGOS ( EXCLUDING MULTINATIONAL COMPANIES INCORPORATED IN BANGLADESH)",912051,"DIRECTORATE OF METEOROLOGY",112019]
["GAS/ELECTRICITY/POWER GENERATING COMPANIES","","DIRECTORATE OF BANGLADESH SURVEY",112020]
["GOVERNMENT EDUCATIONAL INSTITUTIONS","","DIRECTORATE OF ARCHIVES AND LIBRARIES",112021]
["HOUSEHOLDS ( INDIVIDUAL CUSTOMERS)",null,"DIRECTORATE OF GOVT. ACCOMMODATION",112022]
["IMPORTERS",903010,"URBAN DEVELOPMENT DIRECTORATE",112023]
["IMPORTERS AND EXPORTERS",903030,"DIRECTORATE OF INSPECTION AND AUDIT OF MINISTRY OF EDUCATION",112024]
["INSURANCE COMPANIES AND PENSION FUNDS-PRIVATE","","DIRECTORATE OF TECHNICAL EDUCATION",112025]
["MANUFACTURES/MANUFACTURING COMPANIES","","DIRECTORATE GENERAL OF FORCES INTELLIGENCE (DGFI)",112026]
["NON GOVT. PUBLICITY & NEWS MEDIA","","DIRECTORATE GENERAL OF DRUG ADMINISTRATION",112027]
["NON-BANK DEPOSITORY CORPORATIONS -PRIVATE","","DIRECTORATE GENERAL OF FAMILY PLANNING",112028]
["NON-PROFIT INSTITUTIONS SERVING HOUSEHOLDS (NPISH)",null,"DIRECTORATE GENERAL OF DEFENCE PURCHASE",112029]
["OTHER AUTONOMOUS & SEMI-AUTONOMOUS BODIES (COMMISSION, AUTHORITY, DEVELOPMENT BOARD/CENTRE/FOUNDATIONS ETC.)","","DEPARTMENT OF LOCAL GOVERNMENT & ENGINEERING (LGED)",112030]
["OTHER BUSINESS INSTITUTIONS/ORGANIZATIONS",903090,"PUBLIC WORKS DEPARTMENT",112031]
["OTHER FINANCIAL INTERMEDIARIES-- PRIVATE (EXCEPT DMBS)","","DEPARTMENT OF WOMEN AFFAIRS",112032]
["OTHER NON-FINANCIAL CORPORATIONS- PUBLIC","","DEPARTMENT OF AGRICULTURAL EXTENSION",112033]
["OTHER PRIVATE SECTOR ( OFFICIAL ACCOUNT N.I.E) ","","DEPARTMENT OF CO-OPERATIVE",112034]
["POULTRY FARMS",901004,"ROADS AND HIGHWAY DEPARTMENT",112035]
["PRIVATE EDUCATIONAL INSTITUTIONS","","DEPARTMENT OF YOUTH DEVELOPMENT",112036]
["PUBLICITY AND NEWS MEDIA","","PRESS INFORMATION DEPARTMENT",112037]
["RETAIL TRADERS",903050,"DEPARTMENT OF MASS COMMUNICATION",112038]
["SERVICE INDUSTRIES","","DEPARTMENT OF FILM AND PUBLICATIONS",112039]
["TEXT BOOK BOARD AND EDUCATION BOARDS","","HEALTH ENGINEERING DEPARTMENT",112040]
["WHOLE SALE TRADERS",903040,"DEPARTMENT OF IMMIGRATION AND PASSPORT",112041]
["",null,"DEPARTMENT OF PRISON",112042]
["",null,"DEPARTMENT OF FIRE SERVICE AND CIVIL DEFENCE",112043]
["",null,"DEPARTMENT OF NARCOTICS CONTROL",112044]
["",null,"DEPARTMENT OF PATENTS, DESIGNS AND TRADEMARKS",112045]
["",null,"DEPARTMENT OF FISHERIES",112046]
["",null,"DEPARTMENT OF LIVESTOCK SERVICES",112047]
["­SECTOR­","Code","BANGLADESH FOREST DEPARTMENT",112048]
["FOOD MINISTRY ( INCLUDING FOOD DIVISIONS/DIRECTORATES)",111000,"DEPARTMENT OF SHIPPING",112049]
["DIRECTORATE OF BANGLADESH POST OFFICE ( POSTAL SERVICES )",112100,"DEPARTMENT OF DISASTER MANAGEMENT",112050]
["BANGLADESH POST OFFICE (SAVINGS BANK SCHEME)",112200,"DEPARTMENT OF ARCHITECTURE",112051]
["BANGLADESH TEXTILE MILLS CORPORATION & RELATED ENTERPRISES",122100,"DEPARTMENT OF EXPLOSIVE",112052]
["BANGLADESH JUTE MILLS CORPORATION AND RELATED ENTERPRISES",122510,"DEPARTMENT OF AGRICULTURAL MARKETING",112053]
["AGRICULTURAL FARMS (NURSERY, HORTICULTURE, APICULTURE ETC)",901001,"BANGLADESH EDUCATION ENGINEERING DEPARTMENT",112054]
["FISHING FARMS ( HATCHERY, SHRIMP CULTURE ETC)",901002,"DEPARTMENT OF ENVIRONMENT",112055]
["DAIRY FARMS",901003,"DEPARTMENT OF TEXTILE",112056]
["POULTRY FARMS",901004,"OFFICE OF THE THANA EXECUTIVE OFFICER",112057]
["IMPORTERS",903010,"OFFICE OF THE DISTRICT COMMISSIONER",112058]
["EXPORTERS",903020,"OFFICE OF THE DIVISIONAL COMMISSIONER",112059]
["IMPORTERS AND EXPORTERS",903030,"OFFICE OF THE CHIEF INSPECTOR OF BOILERS",112060]
["WHOLE SALE TRADERS",903040,"PUBLIC PRIVATE PARTNERSHIP OFFICE",112061]
["RETAIL TRADERS",903050,"COPYRIGHT OFFICE",112062]
["OTHER BUSINESS INSTITUTIONS/ORGANIZATIONS",903090,"HAJJ OFFICE",112063]
["FOREIGN OFFICES/ EMBASSIES/ENTERPRISES/COMPANIES/LIAISON OFFICES/ FIRMS/NGOS ( EXCLUDING MULTINATIONAL COMPANIES INCORPORATED IN BANGLADESH)",912051,"DISASTER MANAGEMENT BUREAU",112064]
[null,null,"BUREAU OF MANPOWER, EMPLOYMENT AND TRAINING",112065]
[null,null,"BUREAU OF NON-FORMAL EDUCATION",112066]
[null,null,"NGO AFFAIRS BUREAU",112067]
[null,null,"BANGLADESH BUREAU OF STATISTICS",112068]
[null,null,"BOARD OF INVESTMENT BANGLADESH",112069]
[null,null,"NATIONAL BOARD OF REVENUE (NBR), BANGLADESH",112070]
["­11 TYPE OF SECTORS­",null,"BANGLADESH NATIONAL PARLIAMENT (JATIO SANGSHAD SECRETARIAT)",112071]
["Cement Manufacturer",1,"BANGLADESH MISSIONS IN ABROAD",112072]
["Ceramic Tile and Sanitary Ware Manufacturer",2,"GEOLOGICAL SURVEY OF BANGLADESH",112073]
["Fertilizer Manufacturer",5,"BANGLADESH MARINE ACADEMY",112074]
["Power",10,"BANGLADESH GOVT. PRESS (BG PRESS)",112075]
["Steel Re-rolling",3,"BANGLADESH POLICE",112076]
["Pharmaceutical Industries",7,"SPECIAL SECURITY FORCE",112077]
["Pulp & Paper Sector",8,"BORDER GUARD BANGLADESH",112078]
["Ship Breaking",6,"ANSAR AND VDP",112079]
["Tanning and Leather Finishing",9,"RAPID ACTION BATTALION (RAB)",112080]
["Textile and Apparel",4,"BANGLADESH COAST GUARD",112081]
["Generic ESDD",0,"BANGLADESH ORDINANCE FACTORIES",112082]
[null,null,"BANGLADESH ARMY",112083]
[null,null,"BANGLADESH NAVY",112084]
[null,null,"BANGLADESH AIR FORCE",112085]
[null,null,"BANGLADESH SECRETARIAT",112086]
[null,null,"OFFICE OF THE COMMISSIONER OF TAXES",112087]
[null,null,"BANGLADESH FORM AND PUBLICATIONS OFFICE",112088]
[null,null,"OFFICE OF THE ASSISTANT COMMISSIONER OF LAND",112089]
[null,null,"BANGLADESH SUPREME COURT (INCLUDING HIGH COURT)",112090]
[null,null,"DISTRICT JUDGE COURT (INCLUDING OTHER COURTS IN DISTRICT)",112091]
[null,null,"DIRECTORATE OF ARMED FORCES MEDICAL SERVICES",112092]
[null,null,"DIRECTORATE OF GOVERNMENT TRANSPORT",112093]
[null,null,"DIRECTORATE OF INSURANCE",112094]
[null,null,"DEPARTMENT OF RAILROAD INSPECTOR",112095]
[null,null,"BANGLADESH DIPLOMATIC MISSION",112096]
[null,null,"NATIONAL BROADCASTING AUTHORITY",112097]
[null,null,"OTHER MINISTRIES, DIRECTORATES AND DEPARTMENTS",112099]
[null,null,"NATIONAL CURRICULUM AND TEXT BOOK BOARD",113101]
[null,null,"BANGLADESH MADRASHA EDUCATION BOARD",113102]
[null,null,"BANGLADESH TECHNICAL EDUCATION BOARD",113103]
[null,null,"BOARD OF INTERMEDIATE AND SECONDARY EDUCATIONS",113199]
[null,null,"GOVERNMENT SCHOOLS, COLLEGES, UNIVERSITY COLLEGES & MADRASHAS",113201]
[null,null,"CADET COLLEGES",113202]
[null,null,"NATIONAL UNIVERSITY (NU), GAZIPUR",113204]
[null,null,"BANGLADESH OPEN UNIVERSITY (BOU)",113205]
[null,null,"MEDICAL/DENTAL COLLEGES",113206]
[null,null,"INSTITUTES OF TECHNOLOGY (INCLUDING POLYTECHNIC INSTITUTES)",113207]
[null,null,"BANGLADESH UNIVERSITY OF ENGINEERING & TECHNOLOGY (BUET)",113208]
[null,null,"BANGABANDHU SHEIKH MUJIB MEDICAL UNIVERSITY",113209]
[null,null,"DHAKA UNIVERSITY",113210]
[null,null,"RAJSHAHI UNIVERSITY",113211]
[null,null,"CHITTAGONG UNIVERSITY",113212]
[null,null,"JAHANGIRNAGAR UNIVERSITY",113213]
[null,null,"KHULNA UNIVERSITY",113214]
[null,null,"SHAHJALAL UNIVERSITY OF SCIENCE AND TECHNOLOGY",113215]
[null,null,"BANGLADESH AGRICULTURAL UNIVERSITY, MYMENSINGH",113216]
[null,null,"ISLAMIC UNIVERSITY, KUSHTIA",113217]
[null,null,"DHAKA UNIVERSITY OF ENGINEERING & TECHNOLOGY (DUET)",113218]
[null,null,"CHITTAGONG UNIVERSITY OF ENGINEERING & TECHNOLOGY (CUET)",113219]
[null,null,"KHULNA UNIVERSITY OF ENGINEERING & TECHNOLOGY (KUET)",113220]
[null,null,"RAJSHAHI UNIVERSITY OF ENGINEERING & TECHNOLOGY (RUET)",113221]
[null,null,"BANGABANDHU SHEIKH MUJIBUR RAHMAN AGRICULTURAL UNIVERSITY",113222]
[null,null,"SHER-E-BANGLA AGRICULTURAL UNIVERSITY",113223]
[null,null,"HAJEE MOHAMMAD DANESH SCIENCE & TECHNOLOGY UNIVERSITY",113224]
[null,null,"PATUAKHALI AGRICULTURE UNIVERSITY",113225]
[null,null,"BANGABANDHU SHEIKH MUJIBUR RAHMAN SCIENCE & TECHNOLOGY UNIVERSITY",113226]
[null,null,"BANGLADESH TEXTILE UNIVERSITY",113227]
[null,null,"BANGLADESH UNIVERSITY OF PROFESSIONAL",113228]
[null,null,"BARISAL UNIVERSITY",113229]
[null,null,"BEGUM ROKEYA UNIVERSITY, RANGPUR",113230]
[null,null,"CHITTAGONG VETERINARY AND ANIMAL SCIENCES UNIVERSITY",113231]
[null,null,"COMILLA UNIVERSITY",113232]
[null,null,"JAGANNATH UNIVERSITY",113233]
[null,null,"JATIYA KABI KAZI NAZRUL ISLAM UNIVERSITY, MYMENSINGH",113234]
[null,null,"JESSORE SCIENCE & TECHNOLOGY UNIVERSITY",113235]
[null,null,"MAWLANA BHASHANI SCIENCE & TECHNOLOGY UNIVERSITY, TANGAIL",113236]
[null,null,"PABNA UNIVERSITY OF SCIENCE AND TECHNOLOGY",113237]
[null,null,"PATUAKHALI SCIENCE AND TECHNOLOGY UNIVERSITY",113238]
[null,null,"SYLHET AGRICULTURAL UNIVERSITY",113239]
[null,null,"OTHER PUBLIC EDUCATIONAL INSTITUTIONS",113299]
[null,null,"BANGLADESH ACADEMY FOR RURAL DEVELOPMENT (BARD), COMILLA",113301]
[null,null,"RURAL DEVELOPMENT ACADEMY (RDA), BOGRA",113302]
[null,null,"BANGLA ACADEMY",113303]
[null,null,"BANGLADESH SHILPAKALA ACADEMY",113304]
[null,null,"FOREIGN SERVICE ACADEMY",113313]
[null,null,"BANGLADESH INSURANCE ACADEMY",113322]
[null,null,"MARINE FISHERIES ACADEMY",113323]
[null,null,"NATIONAL ACADEMY FOR PLANNING & DEVELOPMENT",113324]
[null,null,"BANGLADESH SHISHU ACADEMY",113325]
[null,null,"NATIONAL ACADEMY FOR PRIMARY EDUCATION (NAPE)",113326]
[null,null,"BANGLADESH CO-OPERATIVE ACADEMY",113327]
[null,null,"KHUDRO NRI GOSTHI CULTURAL ACADEMY, NETROKONA",113328]
[null,null,"NATIONAL TRAINING & RESEARCH ACADEMY FOR MULTILINGUAL SHORTHAND, BOGRA",113329]
[null,null,"NATIONAL ACADEMY FOR EDUCATIONAL MANAGEMENT (NAEM)",113330]
[null,null,"NATIONAL ACADEMY FOR COMPUTER TRAINING AND RESEARCH (NACTAR)",113331]
[null,null,"BANGLADESH CIVIL SERVICE ADMINISTRATION ACADEMY",113332]
[null,null,"ISLAMIC FOUNDATION, BANGLADESH",113305]
[null,null,"BANGLADESH AGRICULTURAL RESEARCH INSTITUTE (BARI)",113306]
[null,null,"BANGLADESH COUNCIL OF SCIENTIFIC & INDUSTRIAL RESEARCH (BCSIR)",113307]
[null,null,"BANGLADESH RICE RESEARCH INSTITUTE (BRRI)",113308]
[null,null,"BANGLADESH STANDARDS & TESTING INSTITUTION (BSTI)",113309]
[null,null,"NATIONAL INSTITUTE OF POPULATION, RESEARCH & TRAINING (NIPORT)",113314]
[null,null,"INSTITUTE OF PUBLIC HEALTH AND NUTRITION",113315]
[null,null,"NATIONAL INSTITUTE OF CARDIOVASCULAR DISEASES",113316]
[null,null,"NATIONAL INSTITUTE OF PREVENTIVE & SOCIAL MEDICINE (NIPSOM)",113317]
[null,null,"INSTITUTE OF PUBLIC HEALTH AND HOSPITAL",113318]
[null,null,"NATIONAL INSTITUTE OF DISEASE OF CHEST & HOSPITAL (NIDCH)",113319]
[null,null,"NATIONAL INSTITUTE OF OPHTHALMOLOGY",113320]
[null,null,"NATIONAL INSTITUTE OF TRAUMATOLOGY & ORTHOPEDIC REHABILITATION (NITOR)",113321]
[null,null,"BANGLADESH JUTE RESEARCH INSTITUTE (BJRI)",113333]
[null,null,"HOUSING & BUILDING RESEARCH INSTITUTE",113334]
[null,null,"BANGLADESH INSTITUTE OF NUCLEAR AGRICULTURE, MYMENSINGH",113335]
[null,null,"BANGLADESH SUGARCANE RESEARCH INSTITUTE (BSRI)",113336]
[null,null,"BANGLADESH LIVESTOCK RESEARCH INSTITUTE",113337]
[null,null,"BANGLADESH FISHERIES RESEARCH INSTITUTE (BFRI)",113338]
[null,null,"BANGLADESH TEA RESEARCH INSTITUTE (BTRI)",113339]
[null,null,"ACCIDENT RESEARCH INSTITUTE (ARI), BANGLADESH",113340]
[null,null,"BANGLADESH SILK RESEARCH AND TRAINING INSTITUTE (BSRTI), RAJSHAHI",113341]
[null,null,"BANGLADESH FOREST RESEARCH INSTITUTE",113342]
[null,null,"RIVER RESEARCH INSTITUTE",113343]
[null,null,"BANGLADESH INSTITUTE OF BANK MANAGEMENT (BIBM)",113344]
[null,null,"BANGLADESH HEALTH PROFESSIONALS INSTITUTE (BHPI)",113345]
[null,null,"BANGLADESH COLLEGE OF PHYSICIANS & SURGEONS",113346]
[null,null,"BANGLADESH INSTITUTE OF DEVELOPMENT STUDIES (BIDS)",113347]
[null,null,"BANGLADESH INSTITUTE OF INTERNATIONAL AND STRATEGIC STUDIES (BIISS)",113348]
[null,null,"BANGLADESH INSTITUTE OF MANAGEMENT (BIM)",113349]
[null,null,"INSTITUTE OF CHARTERED ACCOUNTANTS OF BANGLADESH (ICAB)",113350]
[null,null,"INSTITUTE OF COST & MANAGEMENT ACCOUNTANTS OF BANGLADESH (ICMA)",113351]
[null,null,"KHUDRO NRI GOSTHI CULTURAL INSTITUTE, RANGAMATI & BANDARBAN",113352]
[null,null,"NATIONAL INSTITUTE OF LOCAL GOVERNMENT",113353]
[null,null,"PRESS INSTITUTE OF BANGLADESH",113354]
[null,null,"NATIONAL INSTITUTE OF MASS COMMUNICATION (NIMCO)",113355]
[null,null,"NAZRUL INSTITUTE",113356]
[null,null,"INTERNATIONAL MOTHER LANGUAGE INSTITUTE",113357]
[null,null,"BANGLADESH RURAL DEVELOPMENT TRAINING INSTITUTE (BRDTI)",113358]
[null,null,"MADRASHA TEACHERS TRAINING INSTITUTE (MTTI)",113359]
[null,null,"JUDICIAL ADMINISTRATION TRAINING INSTITUTE",113360]
[null,null,"NATIONAL LEGAL AID INSTITUTE",113361]
[null,null,"BANGLADESH FOREIGN TRADE INSTITUTE (BFTI)",113362]
[null,null,"SOIL RESOURCES DEVELOPMENT INSTITUTE",113363]
[null,null,"CENTRAL DEVELOPMENT RESOURCES DEVELOPMENT INSTITUTE",113364]
[null,null,"BANGLADESH SERI-CULTURAL RESEARCH AND TRAINING INSTITUTE",113365]
[null,null,"INSTITUTE OF WATER MODELING",113366]
[null,null,"NATIONAL MARITIME INSTITUTE",113367]
[null,null,"BANGLADESH PETROLEUM INSTITUTE",113368]
[null,null,"NATIONAL INSTITUTE OF BIOTECHNOLOGY",113369]
[null,null,"BANGLADESH KRIRA SHIKKHA PROTISTHAN (BKSP)",113370]
[null,null,"BANGLADESH INSTITUTE OF TEXTILE TECHNOLOGY (BITT), TANGAIL",113371]
[null,null,"BANGLADESH TOURISM BOARD",113372]
[null,null,"BANGLADESH INDUSTRIAL TECHNICAL ASSISTANCE CENTRE (BITAC), TEJGAON, DHAKA",113373]
[null,null,"NATIONAL BOOK CENTRE, BANGLADESH",113374]
[null,null,"PUBLIC ADMINISTRATION TRAINING CENTRE, SAVAR & RPATC, ESKATON",113375]
[null,null,"COX'S BAZAR CULTURAL CENTRE",113376]
[null,null,"LAND ADMINISTRATION TRAINING CENTRE (LATC)",113377]
[null,null,"BANGLADESH VETERINARY COUNCIL",113312]
[null,null,"BANGLADESH MEDICAL & DENTAL COUNCIL (BMDC)",113378]
[null,null,"PHARMACY COUNCIL OF BANGLADESH",113379]
[null,null,"BANGLADESH MEDICAL RESEARCH COUNCIL",113380]
[null,null,"BANGLADESH NURSING COUNCIL",113381]
[null,null,"JATIYA MOHILA SANGSTHA",113382]
[null,null,"BANGLADESH NATIONAL SOCIAL WELFARE COUNCIL",113383]
[null,null,"COUNCIL OF BANGLADESH INSTITUTE OF TECHNOLOGY",113384]
[null,null,"BANGLADESH AGRICULTURE RESEARCH COUNCIL (BARC)",113385]
[null,null,"NATIONAL SPORTS COUNCIL (NSC)",113386]
[null,null,"BANGLADESH COMPUTER COUNCIL (BCC)",113387]
[null,null,"NATIONAL FREEDOM FIGHTER COUNCIL",113388]
[null,null,"CENTRAL PUBLIC LIBRARY",113310]
[null,null,"BANGLADESH NATIONAL MUSEUM",113311]
[null,null,"NATIONAL MUSEUM OF SCIENCE & TECHNOLOGY",113389]
[null,null,"BANGLADESH SPACE RESEARCH AND REMOTE SENSING ORGANISATION (SPARRSO)",113390]
[null,null,"OTHER COUNCILS/INSTITUTES",113399]
[null,null,"BANGLADESH ATOMIC ENERGY COMMISSION",113401]
[null,null,"PRIVATISATION COMMISSION",113414]
[null,null,"UNIVERSITY GRANTS COMMISSION OF BANGLADESH",113427]
[null,null,"BANGLADESH TARIFF COMMISSION",113428]
[null,null,"JOINT RIVER COMMISSION",113429]
[null,null,"BANGLADESH NATIONAL COMMISSION OF UNESCO",113430]
[null,null,"BANGLADESH ENERGY REGULATORY COMMISSION (BERC)",113431]
[null,null,"NATIONAL HUMAN RIGHTS COMMISSION",113432]
[null,null,"BANGLADESH JUDICIAL SERVICE COMMISSION",113433]
[null,null,"ELECTION COMMISSION BANGLADESH",113434]
[null,null,"ANTI CORRUPTION COMMISSION",113435]
[null,null,"BANGLADESH TELECOMMUNICATION REGULATORY COMMISSION (BTRC)",113436]
[null,null,"BANGLADESH PUBLIC SERVICE COMMISSION",113437]
[null,null,"RAJDHANI UNNAYAN KARTRIPAKKHA (RAJUK)",113405]
[null,null,"CHITTAGONG DEVELOPMENT AUTHORITY (CDA)",113406]
[null,null,"KHULNA DEVELOPMENT AUTHORITY (KDA)",113407]
[null,null,"RAJSHAHI DEVELOPMENT AUTHORITY (RDA)",113408]
[null,null,"BANGLADESH BRIDGE AUTHORITY",113413]
[null,null,"BARIND MULTIPURPOSE DEVELOPMENT AUTHORITY (BMDA), RAJSHAHI",113416]
[null,null,"NATIONAL HOUSING AUTHORITY",113424]
[null,null,"BANGLADESH EXPORT PROCESSING ZONE AUTHORITY (BEPZA)",113438]
[null,null,"MICRO CREDIT REGULATORY AUTHORITY (MRA)",113439]
[null,null,"DHAKA TRANSPORT CO-ORDINATION AUTHORITY (DTCA)",113418]
[null,null,"NON-GOVERNMENT  TEACHERS  REGISTRATION  AND  CERTIFICATION  AUTHORITY  (NTRCA)",113440]
[null,null,"INSURANCE DEVELOPMENT AND REGULARITY AUTHORITY (IDRA)",113441]
[null,null,"BANGLADESH ROAD TRANSPORT AUTHORITY (BRTA)",113442]
[null,null,"SEED CERTIFICATION AGENCY",113444]
[null,null,"BANGLADESH HI-TECH PARK AUTHORITY",113445]
[null,null,"AGRICULTURE INFORMATION SERVICE",113446]
[null,null,"OFFICE OF THE COMPTROLLER AND AUDITOR GENERAL OF BANGLADESH",113447]
[null,null,"CHITTAGONG HILL TRACTS DEVELOPMENT BOARD",113403]
[null,null,"BANGLADESH HANDLOOM BOARD",113409]
[null,null,"BANGLADESH SERICULTURE BOARD",113410]
[null,null,"EXPORT PROMOTION BUREAU",113411]
[null,null,"BANGLADESH RURAL DEVELOPMENT BOARD (BRDB)",113412]
[null,null,"BANGLADESH HAOR AND WETLAND DEVELOPMENT BOARD",113425]
[null,null,"BANGLADESH HOMOEOPATHIC BOARD",113448]
[null,null,"BANGLADESH TOBACCO DEVELOPMENT BOARD",113449]
[null,null,"JUTE INDUSTRIES DEVELOPMENT BOARD",113450]
[null,null,"BANGLADESH APPLIED NUTRITION AND HUMAN RESOURCES DEVELOPMENT BOARD",113451]
[null,null,"VESTED PROPERTY MANAGEMENT BOARD",113452]
[null,null,"BOARD OF UNANI AND AYURVEDIC COUNCIL",113453]
[null,null,"BANGLADESH SPORTS CONTROL BOARD",113454]
[null,null,"NATIONAL BOARD OF ABANDONED PROPERTIES",113455]
[null,null,"BANGLADESH TEA PLANTATION EMPLOYEES' PROVIDENT FUND TRUSTEE BOARD",113456]
[null,null,"COTTON DEVELOPMENT BOARD",113457]
[null,null,"BANGLADESH ACCREDITATION BOARD",113458]
[null,null,"LAND REFORM BOARD",113459]
[null,null,"LAND APPEAL BOARD",113460]
[null,null,"BANGLADESH AGRICULTURAL DEVELOPMENT CORPORATION (BADC)",113402]
[null,null,"THE SECURITY PRINTING CORPORATION (BANGLADESH) LTD.",113417]
[null,null,"CHITTAGONG HILL TRACTS REGIONAL COUNCIL",113419]
[null,null,"RANGAMATI HILL DISTRICT COUNCIL",113420]
[null,null,"KHAGRACHORI HILL DISTRICT COUNCIL",113421]
[null,null,"BANDARBAN HILL DISTRICT COUNCIL",113422]
[null,null,"BANGLADESH NATIONAL MEDICAL COUNCIL",113461]
[null,null,"BANGLADESH PRESS COUNCIL",113462]
[null,null,"PRIME MINISTER'S RELIEF FUND",113404]
[null,null,"PUBLIC TRUST FUNDS",113463]
[null,null,"WELFARE FUNDS",113464]
[null,null,"DEVELOPMENT FUNDS",113465]
[null,null,"BENEVOLENT FUNDS",113466]
[null,null,"PUBLIC EDUCATIONAL FUNDS",113467]
[null,null,"DEVELOPMENT WORKS PROGRAM FUND",113468]
[null,null,"HORTICULTURE EXPORT DEVELOPMENT FOUNDATION (HORTEX FOUNDATION)",113469]
[null,null,"BANGLADESH FOLK ARTS & CRAFT FOUNDATION, SONARGAON",113470]
[null,null,"NATIONAL FOUNDATION FOR RESEARCH ON HUMAN RESOURCES",113471]
[null,null,"NATIONAL FOUNDATION FOR DEVELOPMENT OF THE DISABLED PERSONS",113472]
[null,null,"BANGLADESH NGO FOUNDATION",113473]
[null,null,"HINDU WELFARE TRUST",113474]
[null,null,"BUDDHIST WELFARE TRUST",113475]
[null,null,"CHRISTIAN WELFARE TRUST",113476]
[null,null,"URBAN DEVELOPMENT TRUST",113477]
[null,null,"SHEIKH ZAYAD BIN SULTAN AL NAHIAN TRUST (BANGLADESH)",113478]
[null,null,"OFFICE OF THE BANGLADESH WAQF ADMINISTRATOR",113479]
[null,null,"WATER RESOURCES PLANNING ORGANISATION (WARPO)",113415]
[null,null,"EXECUTIVE CELL, BEPZA",113426]
[null,null,"BANGLADESH NATIONAL SCIENCE & TECHNICAL DOCUMENTATION CENTRE (BANSDOC)",113480]
[null,null,"BANGLADESH OVERSEAS EMPLOYMENT SERVICE LIMITED (BOESEL)",113423]
[null,null,"INVESTMENT ADVISORY CENTRE OF BANGLADESH",113481]
[null,null,"BANGLADESH GIRLS' GUIDE ASSOCIATION",113482]
[null,null,"BANGLADESH SCOUTS",113483]
[null,null,"CYCLONE PREPAREDNESS PROGRAMME (CPP)",113484]
[null,null,"REGISTRAR OF JOINT STOCK COMPANIES AND FIRMS (RJSC)",113485]
[null,null,"COMPREHENSIVE DISASTER MANAGEMENT PROGRAM",113486]
[null,null,"BANGLADESH NATIONAL HERBARIUM",113487]
[null,null,"ALL OTHER BOARDS/CENTRES",113499]
[null,null,"BANGLADESH TELEVISION/BTV WORLD/ SANGSHAD BANGLADESH TV",113501]
[null,null,"BANGLADESH SANGBAD SANGSTHA (BSS)",113502]
[null,null,"BANGLADESH BETAR",113503]
[null,null,"SUGAR MILLS",122210]
[null,null,"FOOD AND ALLIED INDUSTRIES",122220]
[null,null,"PAPER AND PAPER BOARD INDUSTRIES",122320]
[null,null,"STEEL MILLS",122410]
[null,null,"ENGINEERING AND SHIP BUILDING INDUSTRIES",122420]
[null,null,"BANGLADESH PETROLEUM CORPORATION & RELATED ENTERPRISES",122610]
[null,null,"BANGLADESH OIL, GAS & MINERAL CORPORATION & RELATED ENTERPRISES",122620]
[null,null,"HYDROCARBON UNIT, BANGLADESH",122630]
[null,null,"BANGLADESH POWER DEVELOPMENT BOARD",123405]
[null,null,"RURAL ELECTRIFICATION BOARD (REB)",123410]
[null,null,"DHAKA ELECTRIC SUPPLY AUTHORITY (DESA)",123415]
[null,null,"DHAKA ELECTRIC SUPPLY COMPANY (DESCO)",123420]
[null,null,"ASHUGANJ POWER STATION COMPANY LTD (APSCL)",123425]
[null,null,"ELECTRICITY GENERATION COMPANY OF BANGLADESH LTD (EGCB)",123430]
[null,null,"NORTH WEST POWER GENERATION COMPANY LTD (NWPGC)",123435]
[null,null,"WEST ZONE POWER DISTRIBUTION COMPANY LTD (WZPDCL)",123440]
[null,null,"DHAKA POWER DISTRIBUTION COMPANY LTD (DPDCL)",123445]
[null,null,"POWER GRID COMPANY OF BANGLADESH (PGCB)",123450]
[null,null,"RURAL POWER COMPANY LTD (RPCL)",123455]
[null,null,"POWER CELL",123460]
[null,null,"PALLY BIDYUT SAMITIES",123465]
[null,null,"OTHER ENTERPRISES OF PDB",123499]
[null,null,"BANGLADESH BIMAN CORPORATION",122810]
[null,null,"BANGLADESH SHIPPING CORPORATION",122820]
[null,null,"TRADING CORPORATION OF BANGLADESH",122901]
[null,null,"BANGLADESH RAILWAY",122902]
[null,null,"BANGLADESH TELECOMMUNICATIONS COMPANY LIMITED (BTCL) (INCLUDING TELETALK BANGLADESH LTD)",122903]
[null,null,"BANGLADESH ROAD TRANSPORT CORPORATION (BRTC)",122904]
[null,null,"BANGLADESH FOREST INDUSTRIES DEVELOPMENT CORPORATION",122905]
[null,null,"BANGLADESH FISH DEVELOPMENT CORPORATION",123110]
[null,null,"BANGLADESH TEA BOARD",123120]
[null,null,"BANGLADESH INLAND WATER TRANSPORT AUTHORITY (BIWTA)",123210]
[null,null,"BANGLADESH INLAND WATER TRANSPORT CORPORATION (BIWTC)",123220]
[null,null,"BANGLADESH WATER DEVELOPMENT BOARD",123310]
[null,null,"WASA (DHAKA, CHITTAGONG, KHULNA ETC)",123390]
[null,null,"CHITTAGONG PORT AUTHORITY",123510]
[null,null,"MONGLA PORT AUTHORITY",123520]
[null,null,"BANGLADESH STHAL BANDAR KATRIPAKSHA",123530]
[null,null,"BANGLADESH SMALL & COTTAGE INDUSTRIES CORPORATION (BSCIC)",123610]
[null,null,"BANGLADESH PARJATAN CORPORATION",123701]
[null,null,"BANGLADESH FILM DEVELOPMENT CORPORATION",123702]
[null,null,"CIVIL AVIATION AUTHORITY OF BANGLADESH",123704]
[null,null,"BANGLADESH FREEDOM FIGHTERS WELFARE TRUST",123705]
[null,null,"TELEPHONE SHILPA SANGSTHA",123706]
[null,null,"BANGLADESH CABLE INDUSTRIES CORPORATION",123707]
[null,null,"BANGLADESH TANNERY INDUSTRIES CORPORATION",123708]
[null,null,"BANGLADESH SERVICES LTD.",123709]
[null,null,"HOTELS INTERNATIONAL LTD. (3 STARS & ABOVE)",123710]
[null,null,"DOCK LABOUR MANAGEMENT BOARD, CHITTAGONG",123711]
[null,null,"DOCK LABOUR MANAGEMENT BOARD, BAGERHAT",123712]
[null,null,"BANGABANDHU SHEIKH MUJIBUR RAHMAN NOVO THEATRE",123713]
[null,null,"BANGLADESH SUBMARINE CABLE COMPANY LIMITED",123714]
[null,null,"BANGLADESH CABLE SHILPA LIMITED",123715]
[null,null,"ESSENTIAL DRUGS COMPANY LIMITED",123716]
[null,null,"KHULNA SHIPYARD LIMITED",123717]
[null,null,"BANGLADESH MACHINE TOOLS FACTORY LIMITED",123718]
[null,null,"OTHER NON-FINANCIAL CORPORATIONS-PUBLIC",123799]
[null,null,"ASSEMBLING INDUSTRY",902138]
[null,null,"BATTERY MANUFACTURING INDUSTRIES",902154]
[null,null,"BEVERAGE AND SOFT DRINKS MANUFACTURING COMPANIES",902143]
[null,null,"BRICKS MANUFACTURERS AND SAND ELEVATORS",902133]
[null,null,"CEMENT FACTORIES",902131]
[null,null,"CERAMIC INDUSTRIES",902132]
[null,null,"CHEMICAL AND CHEMICAL PRODUCTS INDUSTRIES",902130]
[null,null,"COSMETICS & TOILETRIES INDUSTRIES",902116]
[null,null,"COTTAGE INDUSTRIES",902157]
[null,null,"DISTILLERIES, MINERAL & DRINKING WATER PURIFYING INDUSTRIES",902144]
[null,null,"ELECTRONIC GOODS MANUFACTURING/ASSEMBLING INDUSTRIES (TV, COMPUTER ETC.)",902150]
[null,null,"EPZ INDUSTRIES (TYPE A)",902161]
[null,null,"EPZ INDUSTRIES (TYPE B)",902162]
[null,null,"EPZ INDUSTRIES (TYPE C)",902163]
[null,null,"FERTILIZER COMPANY",902141]
[null,null,"FURNITURE, FIXTURE, PARTICLE BOARDS AND OTHER WOOD PRODUCT MANUFACTURERS",902122]
[null,null,"GARMENTS ACCESSORIES MANUFACTURING INDUSTRIES (ZIPPER, BUTTON ETC)",902155]
[null,null,"GLASS AND GLASSWARE PRODUCTS FACTORIES",902134]
[null,null,"HANDICRAFTS FACTORIES",902160]
[null,null,"HANDLOOM FACTORIES",902159]
[null,null,"HOSIERY FACTORIES",902126]
[null,null,"ICE FACTORY",902151]
[null,null,"JUTE MILLS/JUTE PRODUCTS MANUFACTURING INDUSTRIES (ROPE, THREAD, TWAIN, CANVASS, BAG, CARPET, ETC.)",902110]
[null,null,"LEATHER PROCESSING AND TANNING (RAW HIDE)",902145]
[null,null,"LEATHER PRODUCTS ( BAG, SHOE ETC.) MANUFACTURING INDUSTRIES",902119]
[null,null,"MANUFACTURING OF AGRO-EQUIPMENTS",902149]
[null,null,"MANUFACTURING OF ELECTRICAL EQUIPMENTS & SPARES ( CABLES, BULBS, SWITCHES ETC.)",902147]
[null,null,"MANUFACTURING OF TRANSPORT EQUIPMENTS",902148]
[null,null,"OTHER INDUSTRIES NOT ABOVE MENTIONED",902199]
[null,null,"PACKAGING INDUSTRIES INCLUDING PAPER BOARDS",902146]
[null,null,"PAPER AND PAPER PRODUCTS MANUFACTURING INDUSTRIES",902121]
[null,null,"PHARMACEUTICAL INDUSTRIES",902127]
[null,null,"POLYMER AND POLYTHENE INDUSTRIES",902156]
[null,null,"PRINTING & DYEING INDUSTRIES",902111]
[null,null,"READYMADE GARMENTS INDUSTRIES",902125]
[null,null,"RUBBER AND PLASTIC INDUSTRIES",902117]
[null,null,"SAW MILLS",902158]
[null,null,"SHIP BREAKING INDUSTRIES",902153]
[null,null,"SHIP BUILDING INDUSTRIES",902152]
[null,null,"SOAPS & DETERGENTS FACTORIES",902136]
[null,null,"SPINNING MILLS",902112]
[null,null,"STEEL ENGINEERING & METALLIC PRODUCTS INDUSTRIES (INCLUDING REROLLING MILLS)",902137]
[null,null,"SUGAR MILLS",902142]
[null,null,"TEXTILE MILLS",902120]
[null,null,"TOBACCO PROCESSING INDUSTRIES",902115]
[null,null,"WEAVING MILLS",902113]
[null,null,"PRODUCTION, SUPPLY AND DISTRIBUTION OF POWER IN THE PRIVATE SECTOR",902310]
[null,null,"LP GAS COMPANIES",902311]
[null,null,"OXYGEN GAS COMPANIES",902312]
[null,null,"OTHER GAS COMPANIES",902313]
[null,null,"OTHER ELECTRICITY/POWER GENERATING COMPANIES",902319]
[null,null,"ROAD TRANSPORT COMPANIES (INCLUDING RENT -A - CAR)",902401]
[null,null,"WATER TRANSPORT",902402]
[null,null,"AIR TRANSPORT",902403]
[null,null,"CONSTRUCTION COMPANIES",902404]
[null,null,"PUBLISHING INDUSTRIES (INCLUDING PRINTING PRESS)",902405]
[null,null,"TELECOMMUNICATION (MOBILE/CELLULAR OPERATORS AND PRIVATE LAND PHONE)",902406]
[null,null,"HOUSING COMPANIES OR SOCIETIES/LAND DEVELOPERS",902407]
[null,null,"WAREHOUSE",902408]
[null,null,"BUYING HOUSE",902409]
[null,null,"ENTERTAINMENT SERVICES (AMUSEMENT PARK, THEME PARK, ECO PARK, ZOO ETC.)",902410]
[null,null,"HOSPITALS, CLINICS, DIAGNOSTIC CENTERS AND OTHER HEALTH SERVICES",902420]
[null,null,"IT-BASED ACTIVITIES (SYSTEM ANALYSIS, DESIGN, DEVELOPING SYSTEM SOLUTIONS, GRAMEEN SOLUTION, INFORMATION SERVICE, CALL CENTRE SERVICE, OFFSHORE DEVELOPMENT CENTRE, BUSINESS PROCESS OUTSOURCING , CYBER CAFES, INTERNET SERVICE PROVIDERS ETC.)",902430]
[null,null,"COURIER SERVICES & EXPRESS MAIL SERVICES",902440]
[null,null,"RESTAURANTS /FAST FOOD",902450]
[null,null,"PHOTO STUDIOS AND COLOR LABS",902451]
[null,null,"TRAVEL AGENCIES/OVERSEAS EMPLOYMENT / AVIATION SERVICE/ IMMIGRATION CONSULTANTS/TICKET SALES AGENT",902452]
[null,null,"COLD-STORAGES",902453]
[null,null,"BEAUTY PARLOUS/ SALOONS/ HEALTH CLUB/FITNESS CENTRE",902454]
[null,null,"CLEARING AND FORWARDING (C & F) AGENTS",902455]
[null,null,"TESTING LABORATORY",902456]
[null,null,"TOURISM INDUSTRY (LIST AVAILABLE AT PAGE NO-115)",902457]
[null,null,"FILLING STATIONS (PETROL PUMP, CNG STATION)",902458]
[null,null,"PRIVATE INLAND CONTAINER DEPOT AND CONTAINER FREIGHT STATION",902459]
[null,null,"TANK TERMINAL",902460]
[null,null,"CHAIN SUPER MARKET/SHOPPING MALL",902461]
[null,null,"STONE CRASHERS",902462]
[null,null,"JEWELRY SERVICES",902463]
[null,null,"MODERNIZED CLEANING SERVICE FOR HIGH-RISE APARTMENTS, COMMERCIAL BUILDING",902464]
[null,null,"AUTO MOBILE SERVICE INCLUDING CNG CONVERSION CENTRE.",902465]
[null,null,"ADVERTISING INDUSTRY AND MODELING (PRINT MODELING, TV COMMERCIALS, RAMP MODELING, CATWALK, FASHION-SHOW)",902466]
[null,null,"OUTSOURCING AND SECURITY SERVICE (PRIVATE SECURITY FORCES/MANPOWER SUPPLY)",902467]
[null,null,"RESIDENTIAL HOTELS ( INCLUDING 3 STAR & ABOVE)",902468]
[null,null,"CATERERS /DECORATORS/SOUND & LIGHTING RENTAL BUSINESS",902469]
[null,null,"COMMUNITY CENTERS/ CONVENTION CENTERS/AUDITORIUM",902470]
[null,null,"SHIPPING AGENCY",902471]
[null,null,"FREIGHT FORWARDERS",902472]
[null,null,"INDENTING FIRMS",902473]
[null,null,"LEGAL ADVISORY FIRMS",902474]
[null,null,"LAUNDRY SERVICES",902475]
[null,null,"PRIVATE SURVEY INSTITUTIONS",902476]
[null,null,"SPORTS AND EVENT MANAGEMENT ORGANIZATION",902477]
[null,null,"TAILORING SHOP AND TAILORS",902478]
[null,null,"SATELLITE CABLE OPERATOR",902479]
[null,null,"SATELLITE CHANNEL DISTRIBUTOR/CINEMA DISTRIBUTORS",902480]
[null,null,"AUDIT AND ACCOUNTING FIRM/CA FIRM/ CREDIT RATING COMPANY",902481]
[null,null,"CINEMA STUDIO",902482]
[null,null,"CINEMA HALL/CINEPLEX",902483]
[null,null,"GRAPHIC DESIGNERS",902484]
[null,null,"LIGHT ENGINEERING AND METAL-WORKSHOP",902485]
[null,null,"CONSULTANCY & SUPERVISORY FIRMS",902486]
[null,null,"INTERIOR DESIGN & DECORATORS AND OTHER CONSULTANCY FIRMS",902487]
[null,null,"CONTRACTOR AND SUPPLIER FIRMS",902488]
[null,null,"OTHER SERVICE PROVIDING ORGANIZATIONS",902499]
[null,null,"PROCESSING OF BREAD AND BISCUITS, VERMICELLI, LACCHA, CHANACHUR, NOODLES ETC.",902501]
[null,null,"PROCESSED FRUIT PRODUCTS (JAM, JELLY, JUICE, PICKLES, SARBAT, SYRUP, SAUCE ETC.)",902502]
[null,null,"FRUITS PROCESSING INCLUDING VEGETABLES. (TOMATO, GUAVA, JACKFRUIT, LICHIE, PINEAPPLE, COCONUT ETC.)",902503]
[null,null,"MANUFACTURING OF FLOUR, SUJEE (FLOUR MILLS)",902504]
[null,null,"PROCESSING OF MUSHROOM AND SPIRULINA",902505]
[null,null,"STARCH, GLUCOSE AND OTHER DEXTROSE PRODUCT",902506]
[null,null,"PROCESSING OF POTATO PRODUCTS (CHIPS, POTATO, FLEX, STARCH ETC.)",902507]
[null,null,"PROCESSING OF POWDER SPICE",902508]
[null,null,"MANUFACTURING OF UNANI AND AYURVEDIC MEDICINES/HERBAL COSMETICS",902509]
[null,null,"FISH FEED AND FISH MEAL PROCESSING FOR POULTRY AND LIVESTOCK",902510]
[null,null,"SEED PROCESSING AND PRESERVATION",902511]
[null,null,"PULSE MILLS",902512]
[null,null,"PROCESSING OF RUBBER TAPE, SHELLAC",902513]
[null,null,"PRODUCTION OF BAMBOO AND CANE FURNITURE (EXCLUDING COTTAGE INDUSTRY)",902514]
[null,null,"MEAT PROCESSING",902515]
[null,null,"PRODUCTION OF BIO SLURRY, MIXED MANURE AND UREA.",902516]
[null,null,"PRODUCTION OF BIO-PESTICIDES, NEEM PESTICIDES ETC.",902517]
[null,null,"SWEETENING PRODUCTS.",902518]
[null,null,"SOYA FOOD PRODUCTION & PROCESSING.",902519]
[null,null,"MUSTARD OIL PRODUCING INDUSTRY (IF LOCAL VARIETY IS USED).",902520]
[null,null,"COCONUT OIL PRODUCTION INDUSTRIES",902521]
[null,null,"RICE MILLS INCLUDING PUFFED RICE, CHIRRA, FINE RICE, FLAVORED RICE ETC.",902522]
[null,null,"MILK PROCESSING INDUSTRIES (PASTEURIZATION, MILK POWDER, ICE-CREAM, CONDENSED MILK, SWEET, CHEESE, BUTTER, GHEE, CHOCOLATE, CURD ETC.)",902523]
[null,null,"FOOD PROCESSING INDUSTRY (PRAN, AFTAB, BD-FOOD ETC.)",902524]
[null,null,"SALT PROCESSING INDUSTRIES",902525]
[null,null,"TEA PROCESSING INDUSTRIES",902526]
[null,null,"REFINING AND HYDROGENATION OF EDIBLE OIL, VANASPATI, GHEE ETC.",902527]
[null,null,"PROCESSING OF PRAWN/SHRIMP AND OTHER FISHES AND FREEZING.",902528]
[null,null,"OTHER AGRO BASED/PROCESSING INDUSTRIES.",902599]
[null,null,"NEWSPAPER",907601]
[null,null,"TELEVISION",907602]
[null,null,"RADIO",907603]
[null,null,"ONLINE NEWS MEDIA",907604]
[null,null,"PRIVATE SCHOOLS, COLLEGES, UNIVERSITY COLLEGES & MADRASHAS",908100]
[null,null,"PRIVATE MEDICAL & DENTAL COLLEGES",908200]
[null,null,"PRIVATE UNIVERSITIES",908300]
[null,null,"PRIVATE INSTITUTE OF IT",908400]
[null,null,"OTHER EDUCATIONAL/TECHNICAL / VOCATIONAL TRAINING INSTITUTIONS",908900]
[null,null,"SUNDRY DEPOSIT, CIB INQUIRY CHARGE, CLEARING ADJUSTMENT ACCOUNT, INOPERATIVE ACCOUNT, SUSPENSE ACCOUNT ETC.)",909051]
[null,null,"LEASING COMPANIES",909200]
[null,null,"CENTRAL CO-OPERATIVE BANK",909300]
[null,null,"LAND MORTGAGE CO-OPERATIVE BANK",909400]
[null,null,"OTHER CO-OPERATIVE BANKS/SOCIETIES",909500]
[null,null,"GRAMEEN BANK",909600]
[null,null,"BANGLADESH SAMABAYA BANK LTD",909650]
[null,null,"OTHER NON-BANK DEPOSITORY CORPORATIONS-PRIVATE",909699]
[null,null,"INVESTMENT COMPANIES",909210]
[null,null,"LEASING COMPANIES (NON-DEPOSITORY)",909220]
[null,null,"MUTUAL FUNDS",909230]
[null,null,"MERCHANT BANKS",909240]
[null,null,"NGO/MICRO CREDIT ORGANIZATIONS (BRAC, ASA ETC.)",909250]
[null,null,"OTHER FINANCIAL INTERMEDIARIES-PRIVATE",909299]
[null,null,"LIFE INSURANCE COMPANIES",909110]
[null,null,"GENERAL INSURANCE COMPANIES",909120]
[null,null,"PENSION FUNDS /PROVIDENT FUNDS OF PRIVATE ORGANIZATIONS",909199]
[null,null,"MONEY CHANGERS",909700]
[null,null,"STOCK EXCHANGES (DSE, CSE, ETC)",909710]
[null,null,"BROKERAGE HOUSES/ (SHARE & SECURITY TRADING HOUSES)",909720]
[null,null,"ISSUE MANAGER, UNDER-WRITER, ASSET MANAGEMENT COMPANY ETC.",909730]
[null,null,"OTHER FINANCIAL AUXILIARIES/SERVICES (SUCH AS BKASH)",909799]
[null,null,"MOSQUES",914051]
[null,null,"TEMPLES, CHURCHES & THE LIKE",914052]
[null,null,"SPORTS CLUBS",914053]
[null,null,"OTHER CLUBS",914054]
[null,null,"THEATRE & CULTURAL ORGANIZATIONS",914055]
[null,null,"POLITICAL PARTIES",914056]
[null,null,"TRADE UNIONS",914057]
[null,null,"DISTRICT/UPAZILLA ASSOCIATIONS",914058]
[null,null,"PROFESSIONAL ASSOCIATIONS (DOCTORS, ENGINEERS, STATISTICIANS, ECONOMISTS ETC.)",914059]
[null,null,"CHAMBERS OF INDUSTRIES",914060]
[null,null,"OTHER ASSOCIATIONS, N.E.S.",914061]
[null,null,"TRUST FUND & OTHER NON-PROFIT ORGANIZATIONS",914062]
[null,null,"OTHER NON-PROFIT INSTITUTIONS SERVING HOUSEHOLDS",914099]
[null,null,"FARMER/FISHERMEN",901009]
[null,null,"BUSINESSMEN/INDUSTRIALISTS",903009]
[null,null,"NON-RESIDENT BANGLADESHI",910500]
[null,null,"SERVICE HOLDERS (SALARIED PERSON)",911000]
[null,null,"PROFESSIONALS AND SELF-EMPLOYED PERSONS (SUCH AS DOCTORS, LAWYERS, CONTRACTORS, TAXI DRIVERS, ARCHITECTS, CONSULTANTS, ETC)",910000]
[null,null,"FOREIGN INDIVIDUALS",912050]
[null,null,"HOUSEWIVES",915001]
[null,null,"STUDENTS",915002]
[null,null,"MINOR/AUTISTICS/DISABLED AND OTHER DEPENDENT PERSONS",915003]
[null,null,"RETIRED PERSONS",915004]
[null,null,"OLD/WIDOWED/DISTRESSED PERSON",915005]
[null,null,"LAND LORDS/LADIES",915006]
[null,null,"OTHER LOCAL INDIVIDUALS NOT MENTIONED ABOVE.",915059]

{"sheet":"sector_questions","index":5,"n_rows":16,"n_cols":12,"rows_kept":16,"cut":false,"hidden":true,"merged":[]}
["SL","0","1","2","3","4","5","6","7","8","9","10"]
[1,"Plant machineries, walkways, office areas etc. are free from dust emission.","Plant machineries, walkways, office areas etc. are free from dust emission.","Plant machineries, walkways, office areas etc. are free from dust emission.","Plant machineries, walkways, office areas etc. are free from dust emission.","There are mchanisms to control volatile organic compounds.","There are mchanisms to control volatile organic compounds.","There are mchanisms to control volatile organic compounds.","Plant machineries, walkways, office areas etc. are free from dust emission.","Extraction of ODSs from the system is done by persons who are trained and authorized for handling such materials.","Salt-free pickling system is installed.","Plant machineries, walkways, office areas etc. are free from dust emission."]
[2,"There is sufficient ventilation i.e. provisions for cross ventilation (e.g., windows at regular intervals, exhaust fans, dust controller etc.)","There is sufficient ventilation i.e. provisions for cross ventilation (e.g., windows at regular intervals, exhaust fans, dust controller etc.)","There is sufficient ventilation i.e. provisions for cross ventilation (e.g., windows at regular intervals, exhaust fans, dust controller etc.)","There is sufficient ventilation i.e. provisions for cross ventilation (e.g., windows at regular intervals, exhaust fans, dust controller etc.)","There is sufficient ventilation i.e. provisions for cross ventilation (e.g., windows at regular intervals, exhaust fans, dust controller etc.)","There is sufficient ventilation i.e. provisions for cross ventilation (e.g., windows at regular intervals, exhaust fans, dust controller etc.)","There is sufficient ventilation i.e. provisions for cross ventilation (e.g., windows at regular intervals, exhaust fans, dust controller etc.)","There is sufficient ventilation i.e. provisions for cross ventilation (e.g., windows at regular intervals, exhaust fans, dust controller etc.)","There are proper measures to manage heavy metal and liquid wastage.","There is sufficient ventilation i.e. provisions for cross ventilation (e.g., windows at regular intervals, exhaust fans, dust controller etc.)","There is sufficient ventilation i.e. provisions for cross ventilation (e.g., windows at regular intervals, exhaust fans, dust controller etc.)"]
[3,"There are regular monitoring mechanism and records of ambient air quality and noise level.","There are regular monitoring mechanism and records of ambient air quality and noise level.","There are regular monitoring mechanism and records of ambient air quality and noise level.","There are regular monitoring mechanism and records of ambient air quality and noise level.","There are proper measures to manage heavy metal and liquid wastage.","There are regular monitoring mechanism and records of ambient air quality and noise level.","There are regular monitoring mechanism and records of ambient air quality and noise level.","There are regular monitoring mechanism and records of ambient air quality and noise level.","There are regular monitoring mechanism and records of ambient air quality and noise level.","There are regular monitoring mechanism and records of ambient air quality and noise level.","There are regular monitoring mechanism and records of ambient air quality and noise level."]
[4,"There are mitigation measures to minimize air pollution.","There are proper measures to manage heavy metal and liquid wastage.","There are mitigation measures to minimize air pollution.","There are mitigation measures to minimize air pollution.","There are mitigating measures to control radiation.","There are mitigation measures to minimize air pollution.","There are mitigating measures to control radiation.","There are mitigation measures to minimize air pollution.","There are mitigation measures to minimize air pollution.","Wet scrubbers are used to control the release of VOCs.","There are mitigation measures to minimize air pollution."]
[5,"There are mitigation measures to minimize high noise level.","There are mitigation measures to minimize high noise level.","There are mitigation measures to minimize high noise level.","There are mitigation measures to minimize high noise level.","There are mitigation measures to minimize high noise level.","There are mitigation measures to minimize high noise level.","There are mitigation measures to minimize high noise level.","There are mitigation measures to minimize high noise level.","There are mitigation measures to minimize high noise level.","There are mitigation measures to minimize high noise level.","There are mitigation measures to minimize high noise level."]
[6,"There are proper measures to control emission of CO2, SO2, NOX.","There are proper measures to control emission of CO2, SO2, NOX.","There are proper measures to control emission of CO2, SO2, NOX.","There are proper measures to control emission of CO2, SO2, NOX.","There are proper measures to control emission of CO2, SO2, NOX.","There are proper measures to control emission of CO2, SO2, NOX.","There are proper measures to control emission of CO2, SO2, NOX.","There are proper measures to control emission of CO2, SO2, NOX.","There are proper measures to control emission of CO2, SO2, NOX.","There are proper measures to control emission of CO2, SO2, NOX.","There are proper measures to control emission of CO2, SO2, NOX."]
[7,"Wastewater/effluent is discharged to a location which is not according to the license and permits.","Wastewater/effluent is discharged to a location which is not according to the license and permits.","Wastewater/effluent is discharged to a location which is not according to the license and permits.","Wastewater/effluent is discharged to a location which is not according to the license and permits.","Wastewater/effluent is discharged to a location which is not according to the license and permits.","Wastewater/effluent is discharged to a location which is not according to the license and permits.","Wastewater/effluent is discharged to a location which is not according to the license and permits.","Wastewater/effluent is discharged to a location which is not according to the license and permits.","The project is prone to natural calamities such as floods, cyclones, etc.","Wastewater/effluent is discharged to a location which is not according to the license and permits.","Wastewater/effluent is discharged to a location which is not according to the license and permits."]
[8,"There is an installed Effluent Treatment Plant (ETP) or Sewage Treatment Plant (STP).","There is an installed Effluent Treatment Plant (ETP) or Sewage Treatment Plant (STP).","There is an installed Effluent Treatment Plant (ETP) or Sewage Treatment Plant (STP).","There is an installed Effluent Treatment Plant (ETP) or Sewage Treatment Plant (STP).","There is an installed Effluent Treatment Plant (ETP) or Sewage Treatment Plant (STP).","There is an installed Effluent Treatment Plant (ETP) or Sewage Treatment Plant (STP).","There is an installed Effluent Treatment Plant (ETP) or Sewage Treatment Plant (STP).","There is an installed Effluent Treatment Plant (ETP) or Sewage Treatment Plant (STP).","There are sufficient mitigation measures for transporting hazardous materials.","There is an installed Effluent Treatment Plant (ETP) or Sewage Treatment Plant (STP).","There is an installed Effluent Treatment Plant (ETP) or Sewage Treatment Plant (STP)."]
[9,"There are monitoring records of treatment of water (such as quantity of water treated, quality of wastewater before and after treatment, running hours of ETP etc.)","There are monitoring records of treatment of water (such as quantity of water treated, quality of wastewater before and after treatment, running hours of ETP etc.)","There are monitoring records of treatment of water (such as quantity of water treated, quality of wastewater before and after treatment, running hours of ETP etc.)","There are monitoring records of treatment of water (such as quantity of water treated, quality of wastewater before and after treatment, running hours of ETP etc.)","There are monitoring records of treatment of water (such as quantity of water treated, quality of wastewater before and after treatment, running hours of ETP etc.)","There are monitoring records of treatment of water (such as quantity of water treated, quality of wastewater before and after treatment, running hours of ETP etc.)","There are monitoring records of treatment of water (such as quantity of water treated, quality of wastewater before and after treatment, running hours of ETP etc.)","There are monitoring records of treatment of water (such as quantity of water treated, quality of wastewater before and after treatment, running hours of ETP etc.)","Biological agents are used to treat wastage.","There are monitoring records of treatment of water (such as quantity of water treated, quality of wastewater before and after treatment, running hours of ETP etc.)","There are monitoring records of treatment of water (such as quantity of water treated, quality of wastewater before and after treatment, running hours of ETP etc.)"]
[10,"There is a strong odor of chemicals, dumped waste, blocked sewerage etc. caused by untreated effluent.","There is a strong odor of chemicals, dumped waste, blocked sewerage etc. caused by untreated effluent.","There is a strong odor of chemicals, dumped waste, blocked sewerage etc. caused by untreated effluent.","There is a strong odor of chemicals, dumped waste, blocked sewerage etc. caused by untreated effluent.","There is a strong odor of chemicals, dumped waste, blocked sewerage etc. caused by untreated effluent.","There is a strong odor of chemicals, dumped waste, blocked sewerage etc. caused by untreated effluent.","There is a strong odor of chemicals, dumped waste, blocked sewerage etc. caused by untreated effluent.","There is a strong odor of chemicals, dumped waste, blocked sewerage etc. caused by untreated effluent.","Protective measures are not taken while removing asbestos.","There is a strong odor of chemicals, dumped waste, blocked sewerage etc. caused by untreated effluent.","There is a strong odor of chemicals, dumped waste, blocked sewerage etc. caused by untreated effluent."]
[11,"The project keeps wastewater discharge (quality and quantity) within the prescribed limit.","The project keeps wastewater discharge (quality and quantity) within the prescribed limit.","The project keeps wastewater discharge (quality and quantity) within the prescribed limit.","The project keeps wastewater discharge (quality and quantity) within the prescribed limit.","The project keeps wastewater discharge (quality and quantity) within the prescribed limit.","The project keeps wastewater discharge (quality and quantity) within the prescribed limit.","The project keeps wastewater discharge (quality and quantity) within the prescribed limit.","The project keeps wastewater discharge (quality and quantity) within the prescribed limit.","Protective measures are taken while removing Polychroniated Biphenyls (PCBs).","The project keeps wastewater discharge (quality and quantity) within the prescribed limit.","The project keeps wastewater discharge (quality and quantity) within the prescribed limit."]
[12,"There is evidence of land contamination because of activities such as leakages, spills, improper storage of waste, toxic effluent discharge.","There is evidence of land contamination because of activities such as leakages, spills, improper storage of waste, toxic effluent discharge.","There is evidence of land contamination because of activities such as leakages, spills, improper storage of waste, toxic effluent discharge.","There is evidence of land contamination because of activities such as leakages, spills, improper storage of waste, toxic effluent discharge.","There is evidence of land contamination because of activities such as leakages, spills, improper storage of waste, toxic effluent discharge.","There is evidence of land contamination because of activities such as leakages, spills, improper storage of waste, toxic effluent discharge.","There is evidence of land contamination because of activities such as leakages, spills, improper storage of waste, toxic effluent discharge.","There is evidence of land contamination because of activities such as leakages, spills, improper storage of waste, toxic effluent discharge.","There is evidence of land contamination because of activities such as leakages, spills, improper storage of waste, toxic effluent discharge.","There is evidence of land contamination because of activities such as leakages, spills, improper storage of waste, toxic effluent discharge.","There is evidence of land contamination because of activities such as leakages, spills, improper storage of waste, toxic effluent discharge."]
[13,"There are well maintained records on quantity and quality of solid waste generated (including when it was generated) and how it is being treated.","There are well maintained records on quantity and quality of solid waste generated (including when it was generated) and how it is being treated.","There are well maintained records on quantity and quality of solid waste generated (including when it was generated) and how it is being treated.","There are well maintained records on quantity and quality of solid waste generated (including when it was generated) and how it is being treated.","There are well maintained records on quantity and quality of solid waste generated (including when it was generated) and how it is being treated.","There are well maintained records on quantity and quality of solid waste generated (including when it was generated) and how it is being treated.","There are well maintained records on quantity and quality of solid waste generated (including when it was generated) and how it is being treated.","There are well maintained records on quantity and quality of solid waste generated (including when it was generated) and how it is being treated.","There are well maintained records on quantity and quality of solid waste generated (including when it was generated) and how it is being treated.","There are well maintained records on quantity and quality of solid waste generated (including when it was generated) and how it is being treated.","There are well maintained records on quantity and quality of solid waste generated (including when it was generated) and how it is being treated."]
[14,"There are boxes, cartons, plastic packets, rags, unused or left over raw materials dumped indiscriminately.","There are boxes, cartons, plastic packets, rags, unused or left over raw materials dumped indiscriminately.","There are boxes, cartons, plastic packets, rags, unused or left over raw materials dumped indiscriminately.","There are boxes, cartons, plastic packets, rags, unused or left over raw materials dumped indiscriminately.","There are boxes, cartons, plastic packets, rags, unused or left over raw materials dumped indiscriminately.","There are boxes, cartons, plastic packets, rags, unused or left over raw materials dumped indiscriminately.","There are boxes, cartons, plastic packets, rags, unused or left over raw materials dumped indiscriminately.","There are boxes, cartons, plastic packets, rags, unused or left over raw materials dumped indiscriminately.","There are boxes, cartons, plastic packets, rags, unused or left over raw materials dumped indiscriminately.","There are boxes, cartons, plastic packets, rags, unused or left over raw materials dumped indiscriminately.","There are boxes, cartons, plastic packets, rags, unused or left over raw materials dumped indiscriminately."]
[15,"There is a disaster management system in place to deal with natural calamities","There are proper measures to control volatile organic compounds.","There are proper measures to control volatile organic compounds.","There are proper measures to control volatile organic compounds.","Renewable energy is used.","There are sufficient mitigation measures for transporting hazardous materials.","There are proper measurs to manage potentially pathogenic waste.","There are proper measures to control volatile organic compounds.","There is a disaster management system in place to deal with natural calamities","Non-biodegradable organic substances are not used.","There are proper measures to control volatile organic compounds."]

{"sheet":"sector_weight","index":6,"n_rows":16,"n_cols":12,"rows_kept":16,"cut":false,"hidden":true,"merged":[]}
["SL","0","1","2","3","4","5","6","7","8","9","10"]
[1,8,10,8,8,6,6,10,10,8,10,8]
[2,8,10,8,8,8,8,8,8,8,7,8]
[3,8,10,8,7,7,6,6,8,8,4,8]
[4,6,5,6,7,7,7,5,7,6,8,8]
[5,5,8,5,8,8,6,6,4,5,4,8]
[6,10,10,10,10,8,10,7,10,10,10,10]
[7,8,6,8,8,8,8,10,6,8,8,6]
[8,10,8,10,10,10,10,10,8,10,10,8]
[9,5,4,5,7,8,6,6,5,7,8,4]
[10,6,5,6,5,6,8,8,6,6,8,6]
[11,5,5,5,6,6,6,6,5,5,5,5]
[12,5,5,5,4,6,7,6,6,5,5,5]
[13,5,5,5,4,4,4,4,5,5,4,5]
[14,4,4,4,4,4,4,4,4,4,4,4]
[15,7,5,7,4,4,4,4,8,5,5,7]

{"sheet":"ProjectDetails","index":7,"n_rows":26,"n_cols":5,"rows_kept":26,"cut":false,"hidden":true,"merged":[]}
[null,"Basic Information"]
[null,"Bank/FI Name","ABC"]
[null,"Branch Name","Motijheel"]
[null,"Date","2022-06-26"]
[null,"Name of Client/Account","ABC TRADERS"]
[null,"Transaction ID",123456]
[null,"Location"]
[null,"   Division"]
[null,"   District","chittagong"]
[null,"   Upazilla/Thana","DHAMRAI"]
[null,"Sector","Generic ESDD"]
[null,{"$f":"IF(C11=\"Generic ESDD\",\"Insert Sector Name for Generic ESDD\",\"\")","v":"Insert Sector Name for Generic ESDD"},null,null,{"$f":"IFERROR(VLOOKUP(C12,sector_10,2,FALSE),0)","v":0}]
[null,"CIB Sector code"]
[null,"Product Manufactured/Traded "]
[null,"Core Market","INTERNATIONAL"]
[null,"Name of Relationship Official"]
[null,"DOE Categorisation"]
[null,"Transaction Type as Table 1 of Guidelines","Transaction Type-3 of ESRM Guideline "]
[]
[null,"Risk Rating of the Project",{"$f":"IF(C24<40,\"High Risk\",IF(C24<70,\"Medium Risk\",\"Low Risk\"))","v":"Medium Risk"}]
[null,"General Risks",{"$f":"Checklist!E6","v":100}]
[null,"Environmental health and safety risks",{"$f":"Checklist!E23","v":-76}]
[null,"Social risks",{"$f":"Checklist!E40","v":100}]
[null,"Final Score",{"$f":"AVERAGE(C21:C23)","v":41.333333333333336}]
[]
[null,"Summary of the Rating"]